Cogmind - Beta 16.1 @@@ ROGUE MODE // 2026.04.26 @ 22:29:56 Player: Savant Result: Escaped singularity! Performance ------------- Evolutions (9) 4500 Regions Visited (33) 6600 Robots Destroyed (502) 2510 Value Destroyed (37892) 37892 Prototype IDs (379) 7580 Alien Tech Used (15) 3000 Bonus (67296) 67296 TOTAL SCORE: 129378 Bonus ------- High Alert Combat Kills 6946 Follower Combat Kills 8375 Hunted by Unchained 500 Entered Garrisons 2000 Used RIF Installer 6000 Network Hubs Disabled 200 Built Enhanced Grunts 300 A7 Reached Mainframe 300 Met R17 at Cetus 500 Met R17 at Research 2000 Scanned by Researcher 500 Destroyed MAIN.C Guards 500 Met MAIN.C 5000 Destroyed MAIN.C Shell 5000 Destroyed MAIN.C 10000 Met Architect 300 Destroyed A8 300 Destroyed A6 400 Destroyed A5 500 Destroyed Architect 15000 Win 3000 Friendly Fire -325 Cogmind --------- Core Integrity 154/1600 Matter 10/300 Energy 98/100 System Corruption 0% +Membrane Temperature Cool (0) Movement Core (50) Location Near Former Tau Ceti IV Parts ------- > --- POWER (3) -------- (None) > --- PROPULSION (6) --- (None) > --- UTILITY (10) ----- (None) > --- WEAPON (6) ------- (None) > --- INVENTORY (5) ---- Quantum Capacitor Microwarp Drive Peak State ------------ > --- POWER ------------ Improved Quantum Reactor Vortex Chain Reactor > --- PROPULSION ------- Heavy Siege Treads Biometal Heavy Treads Experimental Biometal Heavy Treads > --- UTILITY ---------- Advanced Cooling System Huge Storage Unit Experimental Optical Array Experimental Targeting Computer Experimental Core Analyzer Graphene Brace Advanced Force Field Microwarp Drive > --- WEAPON ----------- Compact HERF Cannon Improved Potential Cannon Heavy Hardcell Cannon Graviton Cannon > --- INVENTORY -------- Compact Particle Reactor Zero-point Reactor Advanced Cooling System Advanced Energy Well Advanced Energy Well Experimental Energy Well Long-range Terrain Scanner Experimental Core Analyzer Quantum Capacitor Experimental Weapon Cycler Experimental Core Shielding Heavy Regenerative Plating Thermal Barrier Experimental EM Shield Advanced Force Field Mini Drone Bay Transdimensional Reconstructor Enhanced Nova Cannon Hypervelocity Linear Accelerator Hellfire Missile Launcher [Rating: 251] Favorites ----------- Power Quantum Reactor Engine Light Ion Engine Power Core Enhanced Fission Core Reactor Quantum Reactor Propulsion Improved Heavy Treads Treads Improved Heavy Treads Leg Heavy Shield Leg Wheel Armored Huge Wheel Hover Unit Improved Antigrav System Utility Huge Storage Unit Device Advanced Cooling System Storage Huge Storage Unit Processor Experimental Optical Array Hackware Relay Coupler [NC] Protection Heavy Regenerative Plating Artifact Microwarp Drive Weapon Enhanced Hardcell Cannon Energy Gun Improved EM Shotgun Energy Cannon Compact HERF Cannon Ballistic Gun Enhanced Coil Gun Ballistic Cannon Enhanced Hardcell Cannon Launcher Neutron Missile Launcher Special Weapon Advanced Remote Datajack Impact Weapon Shock Maul Slashing Weapon Great Axe Special Melee Weapon 1B-0RG's Assimilator Build | -11 -10 -10 -8 -8 -8 -8 -7 -7 -7 -7 -7 -7 -6 -6 -5 -5 -5 -5 -5 -5 -4 -4 -4 -4 -3 -3 -2 -2 -2 -2 -1 -1 -1 ------- Run | Yrd Mat Sub Mat Gar Mat Gar Fac Gar Fac Gar Fac Gar Fac Gar Fac Ext Cet Arc Hub Gar Fac Gar Fac Gar Res Tes Res Qua Sec Gar Acc Com Ac0 Slots Evolved 18 | . . . 4 . . . 2 . . . . . 2 . 2 . . . . . 2 . . . 2 . 2 . . . 2 . . Power 2 | . . . . . . . . . . . . . . . . . . . . . . . . . . . 1 . . . 1 . . Propulsion 4 | . . . 1 . . . 1 . . . . . . . . . . . . . 1 . . . 1 . . . . . . . . Utility 8 | . . . 2 . . . 1 . . . . . 1 . . . . . . . 1 . . . 1 . 1 . . . 1 . . Weapon 4 | . . . 1 . . . . . . . . . 1 . 2 . . . . . . . . . . . . . . . . . . Parts Attached 379 | 8 10 7 20 12 15 10 9 11 6 10 3 7 7 8 8 6 3 7 3 18 10 21 1 10 8 13 14 27 14 11 18 36 8 Power 34 | 1 1 . 2 1 2 1 1 . . 1 . . . 1 . 1 . 1 . 3 . 1 . . 1 . 2 5 . . 4 4 1 Engine 5 | 1 1 . . . . 1 1 . . . . . . . . . . . . 1 . . . . . . . . . . . . . Core 6 | . . . 2 1 2 . . . . . . . . . . . . . . 1 . . . . . . . . . . . . . Reactor 23 | . . . . . . . . . . 1 . . . 1 . 1 . 1 . 1 . 1 . . 1 . 2 5 . . 4 4 1 Propulsion 80 | 2 3 3 6 2 5 1 3 . 2 1 . 1 . 1 . 2 . 2 . 1 3 6 1 2 2 1 4 3 2 4 2 14 1 Treads 56 | 2 3 3 4 1 2 . 2 . 1 1 . 1 . 1 . 1 . 2 . 1 3 3 1 2 2 1 4 3 2 4 2 3 1 Leg 13 | . . . . . . . . . . . . . . . . . . . . . . 3 . . . . . . . . . 10 . Wheel 10 | . . . 2 1 3 1 1 . 1 . . . . . . 1 . . . . . . . . . . . . . . . . . Hover 1 | . . . . . . . . . . . . . . . . . . . . . . . . . . . . . . . . 1 . Flight . | . . . . . . . . . . . . . . . . . . . . . . . . . . . . . . . . . . Utility 168 | 2 2 1 8 5 5 5 5 9 4 6 2 5 6 3 7 2 1 2 3 9 2 9 . 4 4 5 4 12 7 6 8 10 5 Device 51 | 1 1 1 . 1 1 . 2 1 . 1 . . 1 1 2 1 . 2 1 3 1 2 . 1 . 1 2 8 4 1 4 5 2 Storage 9 | 1 1 . 2 . . . . . 1 . . . . . 1 . . . . . . . . . . . . 1 . . 1 . 1 Processor 14 | . . . 2 . . . . . 1 . . . . . 1 . . . . . 1 . . . 1 1 1 . 1 . . 4 1 Hackware 68 | . . . 1 2 3 3 2 5 2 5 2 5 4 2 3 1 . . 1 5 . 7 . 3 2 1 1 . . 5 3 . . Protection 23 | . . . 3 2 1 2 1 3 . . . . 1 . . . 1 . 1 1 . . . . 1 2 . 1 1 . . 1 1 Artifact 3 | . . . . . . . . . . . . . . . . . . . . . . . . . . . . 2 1 . . . . Weapon 97 | 3 4 3 4 4 3 3 . 2 . 2 1 1 1 3 1 1 2 2 . 5 5 5 . 4 1 7 4 7 5 1 4 8 1 Energy Gun 10 | 2 . . 1 . 3 . . . . . . . . . . . 1 . . 2 . . . . . . . . . . . 1 . Energy Cannon 23 | . 2 3 . . . . . . . 1 . 1 . 1 . . . . . . 2 . . 1 . 2 3 1 1 1 2 2 . Ballistic Gun 13 | 1 . . . . . 1 . . . . . . . 1 . . . 1 . 1 3 3 . . 1 . . . 1 . . . . Ballistic Cannon 13 | . . . . . . . . . . . . . . . . . . . . . . 1 . 2 . . 1 2 . . 1 5 1 Launcher 7 | . 1 . . . . . . . . 1 . . . . . 1 . . . . . . . 1 . 1 . . 1 . 1 . . Special Weapon 20 | . 1 . 1 1 . 2 . 2 . . 1 . . 1 . . 1 1 . 1 . 1 . . . 4 . 2 1 . . . . Impact Weapon 2 | . . . . . . . . . . . . . . . . . . . . 1 . . . . . . . 1 . . . . . Slashing Weapon 8 | . . . 2 3 . . . . . . . . 1 . . . . . . . . . . . . . . 1 1 . . . . Piercing Weapon . | . . . . . . . . . . . . . . . . . . . . . . . . . . . . . . . . . . Special Melee Weapon 1 | . . . . . . . . . . . . . . . 1 . . . . . . . . . . . . . . . . . . Unidentified Prototypes 30 | . 1 . 1 . . . . . . . . . . . 1 . 2 2 . 5 1 2 . 1 . 1 . 10 2 1 . . . Corrupted Parts 1 | . . . . . . . . . . . . . . . . . . 1 . . . . . . . . . . . . . . . System Corruption 2 | . . . . . . . . . . . . . . . . . . 2 . . . . . . . . . . . . . . . Parts Lost 78 | . . . 6 4 2 5 . . . 1 . . 1 2 . 2 . . 8 1 1 6 . 3 1 5 2 3 2 1 1 12 9 Power 12 | . . . . . 1 1 . . . . . . . 1 . 1 . . 1 . . 1 . . 1 . . 1 . . 1 2 1 Propulsion 21 | . . . 2 2 1 1 . . . . . . . . . 1 . . 2 . 1 2 . . . . . 1 . . . 5 3 Utility 24 | . . . 3 2 . 1 . . . . . . 1 1 . . . . 3 . . 2 . . . 2 1 1 1 . . 3 3 Weapon 21 | . . . 1 . . 2 . . . 1 . . . . . . . . 2 1 . 1 . 3 . 3 1 . 1 1 . 2 2 Highest Loss Streak 8 | . . . 2 2 1 2 . . . 1 . . 1 1 . 1 . . 8 1 1 3 . 3 1 2 1 1 1 1 1 7 7 To Critical Strikes 3 | . . . . . . . . . . . . . . . . 1 . . . . 1 . . . . . . 1 . . . . . Average Backups 17 | 4 9 8 7 15 15 15 15 14 14 17 18 17 17 17 21 19 21 21 21 21 22 23 23 23 22 21 21 21 21 20 21 17 19 Power . | . 1 . . . . . . . . . 1 1 1 . 1 1 1 1 1 1 1 . 1 1 . . . . . . . . 1 Propulsion 1 | 2 3 2 . 1 3 3 3 3 2 2 3 2 3 2 2 1 2 1 1 2 2 . 1 1 1 1 . . . . . . . Utility 9 | . 1 1 2 4 5 5 7 7 8 8 9 8 7 7 10 9 10 11 10 12 13 15 15 17 15 13 14 12 11 13 13 9 12 Weapon 3 | 1 2 3 1 4 3 2 1 1 1 2 2 2 1 2 3 3 3 4 4 1 2 5 4 2 3 4 4 5 3 1 2 4 2 Tool/Special . | . . . . . . . . . . . . . . . . . . . . . . . . . . . . . . . . . . Unused Backups 104 | . 6 4 . 2 6 5 3 2 1 3 . 3 3 6 7 . 2 . . 4 6 5 1 4 3 5 3 5 4 . 4 3 4 Power 4 | . . 1 . . . . . . . . . . . 1 . . . . . . . . . . . . . 1 . . 1 . . Propulsion 21 | . 5 . . . 4 1 2 . 1 1 . 1 . . . . 1 . . 2 . . . . . . 1 . . . 1 1 . Utility 59 | . 1 1 . 1 2 3 1 2 . 1 . 2 3 4 6 . . . . 2 5 3 1 3 2 2 2 3 2 . 2 2 3 Weapon 15 | . . 2 . 1 . 1 . . . 1 . . . 1 . . 1 . . . 1 1 . . 1 3 . . 1 . . . 1 Tool/Special 5 | . . . . . . . . . . . . . . . 1 . . . . . . 1 . 1 . . . 1 1 . . . . Average Slot Usage (%) 83 | . 100 99 92 99 100 99 91 91 91 84 84 83 85 85 64 63 64 64 62 73 81 84 89 88 84 81 85 81 77 76 81 75 71 Engine 2 | . 14 14 . . . 1 7 7 7 3 . . . . . . . . . 2 . . . . . . . . . . . . . Core 1 | . . . 8 9 9 7 . . . . . . . . . . . . . 2 5 1 . . . . . . . . . . . Reactor 3 | . . . . . . . . . . 3 7 7 6 6 5 4 5 5 5 . . 3 5 5 4 4 8 7 4 4 9 8 8 Treads 12 | . 28 28 25 9 9 9 8 15 15 7 7 7 6 6 5 5 5 5 5 10 12 12 10 10 13 14 13 13 13 13 11 6 11 Wheel 3 | . . . 1 17 17 18 13 7 7 7 7 7 6 6 5 4 5 5 4 . . . . . . . . . . . . . . Device 8 | . 14 14 5 1 4 4 3 9 2 7 3 5 4 6 2 . . 3 . 2 7 7 5 5 3 7 8 12 15 14 3 18 15 Storage 6 | . 14 14 10 9 9 9 7 7 7 7 7 7 6 6 5 5 5 5 5 5 5 5 5 5 4 4 4 4 4 4 4 4 4 Processor 3 | . . . 5 9 . . . . 2 . . . . . 1 . . . . . . 5 5 5 4 5 7 8 6 8 8 8 12 Hackware 10 | . . . . 11 14 15 17 13 14 16 20 17 20 17 19 21 17 13 16 13 12 11 21 21 19 14 12 8 4 2 16 1 . Protection 4 | . . . 8 5 7 6 8 6 9 5 5 6 6 8 4 6 11 11 10 4 5 2 . . 3 4 4 3 3 4 4 2 4 Energy Gun 1 | . 1 . 5 . 14 9 6 6 7 1 . . . . . . . . . 5 . . . . . . . . . . . . . Energy Cannon 8 | . 23 27 6 . . . . . . 4 7 6 12 13 1 1 4 . . . 8 . . 4 8 8 12 7 7 6 8 6 7 Ballistic Gun 2 | . 1 . . . . 5 . . . . . . . 1 . . . . 2 5 11 24 14 4 . 2 2 . 1 . . . . Ballistic Cannon 3 | . . . . . . . . . . . . . . . . . . . . . . . 4 9 9 5 5 7 8 6 6 8 7 Special Weapon 3 | . . . . 3 3 4 7 7 7 7 7 7 6 6 3 2 . 1 1 8 4 3 5 5 3 4 4 1 2 5 3 . . Slashing Weapon 3 | . . . 14 22 8 6 7 7 7 7 7 7 6 4 1 . . 1 . 3 . . . . . . . 3 2 3 4 1 . Peak Build Rating 251 | 8 13 16 37 41 40 43 55 56 55 75 73 75 88 88 135 134 141 145 146 124 133 144 133 135 150 175 191 216 223 218 239 249 251 Average Rating 122 | 5 11 10 30 38 36 41 53 54 53 68 72 72 83 87 131 130 136 140 138 108 127 133 132 131 147 163 181 201 211 207 212 221 235 On Entrance 105 | . 8 12 16 37 35 40 42 55 54 54 73 71 73 85 87 132 130 138 139 39 117 133 133 132 135 148 165 191 214 215 193 239 241 Avg Prop Armor Cover (%) 11 | . . . 10 11 10 10 8 14 14 14 13 13 12 12 13 13 11 11 9 . 3 2 3 3 . . . 6 . . . 6 . Naked Turns 3 | . . . . . . . . . . . . . . . . . . . . . . . . . . . . . . . . . 3 Heaviest Build 247 | 12 22 30 71 68 60 66 73 71 111 120 119 124 128 129 166 169 172 172 177 142 156 152 136 153 158 171 196 199 207 185 217 247 240 Greatest Support 260 | 40 40 40 60 26 26 24 40 28 28 28 28 28 28 28 28 150 28 28 160 155 178 173 145 150 230 230 240 260 260 250 250 245 235 Greatest Overweight (x) 6 | . . . 6 6 5 2 2 2 3 4 4 4 4 4 5 6 6 6 6 1 1 1 . 1 . . . 1 1 . 1 2 1 Average Overweight (x) 1 | . . . . 2 2 2 1 2 2 3 3 3 4 4 4 4 5 5 5 . . . . . . . . . . . . . . Largest Inventory Capacity 25 | 8 10 10 20 20 20 20 20 20 25 25 25 25 25 25 25 25 25 25 25 25 25 25 25 25 25 25 25 25 25 25 25 25 25 Average Capacity 22 | 7 9 10 13 20 20 20 20 20 23 25 25 25 25 25 25 25 25 25 25 25 25 25 25 25 25 25 25 25 25 25 25 25 24 Most Carried 25 | 8 10 10 20 20 20 20 20 20 20 25 25 25 25 25 25 24 25 25 25 25 25 25 25 25 25 25 25 25 25 25 25 25 25 Average Carried 21 | 4 9 9 11 19 19 19 19 19 19 24 25 24 24 24 24 22 24 24 24 23 24 24 24 24 24 24 24 24 24 24 24 22 23 Final Capacity 25 | 8 10 10 20 20 20 20 20 20 25 25 25 25 25 25 25 25 25 25 25 25 25 25 25 25 25 25 25 25 25 25 25 25 5 Final Carried 25 | 8 10 10 19 20 20 20 20 20 20 25 25 25 24 25 24 22 25 25 21 25 25 25 25 25 24 25 25 25 24 25 23 25 5 Class Distribution -------------------- 18% | Botlord-Executioner 14% | Mutant 12% | Bothacker-Mutant 11% | Tank 9% | Scavenger-Executioner 9% | Executioner 5% | Commander-Mutant 4% | Commander-Tank 3% | Scavenger-Mutant 3% | Botlord-Mutant Dominant Class ---------------- Mutant | -10/Materials Mutant | -10/Subcaves Scavenger-Mutant | -8/Materials Scavenger-Gladiator | -8/Garrison Tank | -8/Materials Mutant | -8/Garrison Bothacker-Mutant | -7/Factory Bothacker-Mutant | -7/Garrison Bothacker-Mutant | -7/Factory Bothacker-Mutant | -7/Garrison Bothacker-Mutant | -7/Factory Bothacker-Mutant | -7/Garrison Commander-Tank | -6/Factory Botlord-Tank | -6/Garrison Botlord-Mutant | -5/Factory Bothacker-Mutant | -5/Extension Commander-Mutant | -5/Cetus Commander-Mutant | -5/Archives Scavenger-Mutant | -5/Hub_04(d) Botlord-Executioner | -5/Garrison Botlord-Executioner | -4/Factory Botlord-Executioner | -4/Garrison Botlord-Executioner | -4/Factory Botlord-Executioner | -4/Garrison Botlord-Executioner | -3/Research Botlord-Executioner | -3/Testing Scavenger-Executioner | -2/Research Tank | -2/Quarantine Executioner | -2/Section 7 Scavenger-Executioner | -2/Garrison Botlord-Executioner | -1/Access Executioner | -1/Command Scavenger-Executioner | -1/Access_0 Resources | -11 -10 -10 -8 -8 -8 -8 -7 -7 -7 -7 -7 -7 -6 -6 -5 -5 -5 -5 -5 -5 -4 -4 -4 -4 -3 -3 -2 -2 -2 -2 -1 -1 -1 ----------- Run | Yrd Mat Sub Mat Gar Mat Gar Fac Gar Fac Gar Fac Gar Fac Gar Fac Ext Cet Arc Hub Gar Fac Gar Fac Gar Res Tes Res Qua Sec Gar Acc Com Ac0 Matter Collected 28380 | 291 192 451 298 310 305 414 430 265 155 308 87 358 535 302 1805 1601 1342 698 1195 1004 374 1654 15 1130 257 921 386 1998 3336 1346 438 3284 895 Remotely 7249 | . . . . . . . . . . . . . . . . 507 345 . 171 . 113 502 . . . 396 196 921 1284 674 122 2018 . Salvage Created 27520 | 115 499 379 1101 453 776 1200 219 247 11 304 . 221 401 587 47 226 . 107 49 750 686 1659 . 954 375 1752 797 2621 3694 2018 1368 2906 998 Parts 1137 | 9 33 27 58 29 34 54 12 14 3 12 . 7 14 33 5 11 . 11 2 38 20 60 . 35 17 81 28 132 119 66 49 85 39 Haulers Intercepted 5 | . 2 . 1 . 2 . . . . . . . . . . . . . . . . . . . . . . . . . . . . Recyclers Shooed 6 | . . . . . 1 . . . . . . . . . . . . . . . . . . . . 1 2 . 1 . . 1 . Parts Field Recycled . | . . . . . . . . . . . . . . . . . . . . . . . . . . . . . . . . . . Retrieved Matter . | . . . . . . . . . . . . . . . . . . . . . . . . . . . . . . . . . . Parts Self-Destructed 15 | . . 15 . . . . . . . . . . . . . . . . . . . . . . . . . . . . . . . Prevented . | . . . . . . . . . . . . . . . . . . . . . . . . . . . . . . . . . . Parts Restored . | . . . . . . . . . . . . . . . . . . . . . . . . . . . . . . . . . . Kills | -11 -10 -10 -8 -8 -8 -8 -7 -7 -7 -7 -7 -7 -6 -6 -5 -5 -5 -5 -5 -5 -4 -4 -4 -4 -3 -3 -2 -2 -2 -2 -1 -1 -1 ------- Run | Yrd Mat Sub Mat Gar Mat Gar Fac Gar Fac Gar Fac Gar Fac Gar Fac Ext Cet Arc Hub Gar Fac Gar Fac Gar Res Tes Res Qua Sec Gar Acc Com Ac0 Combat Hostiles Destroyed 391 | . 8 8 20 15 7 15 3 5 . 4 . . 5 15 . 1 . . 2 5 11 26 . 9 3 16 13 33 53 38 15 42 19 Melee 55 | . . . 13 8 1 6 3 3 . . . . 1 4 . . . . . 1 3 2 . . . . . 2 4 1 3 . . Guns 54 | . . . . 1 4 9 . 1 . . . . . 1 . . . . 2 4 2 20 . 3 . 4 1 . . . . 2 . Cannons 149 | . 5 8 . . . . . . . . . . 4 10 . 1 . . . . 3 . . 5 1 9 6 17 30 11 6 22 11 AOE 73 | . 3 . 7 6 2 . . 1 . 4 . . . . . . . . . . . . . . . 2 4 5 4 17 1 13 4 Classes Destroyed 28 | 2 5 1 4 2 . 2 1 . . . . . . 1 . . . . . . . 2 . 1 1 1 . 3 . . . 2 . Worker 18 | . 1 . 1 . 2 . . . . . . . . . 1 . . . . . . . . . 2 6 . 3 2 . . . . Builder 19 | . . . 3 . . . 1 . 1 . . . 1 . . 2 . . . . . . . . 2 2 1 4 1 . 1 . . Tunneler 8 | 3 1 . . . 2 . . . . . . . . . 1 . . . . . . . . . . . . . . . 1 . . Hauler 5 | . 2 . 1 . 2 . . . . . . . . . . . . . . . . . . . . . . . . . . . . Recycler 18 | 1 1 . 3 . 1 . . . . . . . 1 . . 1 . . . . . . . . 1 1 . 1 2 . 1 4 . Mechanic 4 | . . . 1 . . . . . . . . . . . . . . . . . . . . . . 2 . . . . . 1 . Operator 6 | . . . 1 . . . . . . . . . . . . . . 3 . . . . . . . . . 2 . . . . . Watcher 15 | . 3 . 1 . 2 . . . . 1 . . . . . . . . . . . . . 1 . 1 1 1 3 1 . . . Swarmer 71 | . 3 . 7 7 1 . . 1 . 4 . . . 5 . . . . 2 4 2 8 . 2 . . 5 . 4 14 2 . . Cutter 5 | . . . . . . . . . . . . . . 4 . . . . . . . . . . . . . . . 1 . . . Grunt 107 | . 5 . 10 5 3 5 2 2 . . . 2 1 . . . . . . 2 . 8 . 3 . 11 2 10 15 10 2 9 . Brawler 12 | . . . . . . 1 . . . . . . . 2 . . . . . . . 1 . . . . 1 . 1 2 1 3 . Duelist 6 | . . . . . . . 1 . . . . . 1 . . . . . . . . 1 . . . . . . 1 . 1 1 . Protector 2 | . . . . . . . . . . . . . . . . . . . . . . . . . . . . . . . . 2 . Researcher 4 | . . . . . . . . . . . . . . . . . . . . . . . . . . 2 . 2 . . . . . Sentry 26 | . . . 3 1 3 2 . . . . . . 1 4 . 1 . . . . 6 . . . . . 1 . 2 1 1 . . Demolisher 1 | . . . . . . . . . . . . . . . . . . . . . . . . . 1 . . . . . . . . Specialist 2 | . . . . 1 . . . 1 . . . . . . . . . . . . . . . . . . . . . . . . . Hunter 54 | . . . . 1 1 2 . . . . . . 1 . . . . . . . 2 2 . 1 2 2 2 4 12 8 7 7 . Programmer 59 | . . . . . . 5 1 1 . . . . 1 . . . . . . 1 1 4 . 2 . 5 1 13 10 . 3 11 . Heavy 2 | . . . . . . . . . . . . . . . . . . . . . . . . . . . . . . . . 2 . Q-Series 9 | . . . . . . . . . . . . . . . . . . . . . . . . . . . . 4 5 . . . . Behemoth 7 | . . . . . . . . . . . . . . . . . . . . . . 2 . . . . 1 . 1 2 . 1 . S7 Guard 2 | . . . . . . . . . . . . . . . . . . . . . . . . . . . . . 2 . . . . M Guard 2 | . . . . . . . . . . . . . . . . . . . . . . . . . . . . . . . . 2 . Enhanced Grunt 10 | . . . . . . . . . . . . . . . . . . . . . . . . . . . . . . . . . 10 Enhanced Sentry 1 | . . . . . . . . . . . . . . . . . . . . . . . . . . . . . . . . . 1 Enhanced Hunter 4 | . . . . . . . . . . . . . . . . . . . . . . . . . . . . . . . . . 4 Combat Programmer 2 | . . . . . . . . . . . . . . . . . . . . . . . . . . . . . . . . 2 . Striker 3 | . . . . . . . . . . . . . . . . . . . . . . . . 2 . . . . . 1 . . . Executioner 2 | . . . . . . . . . . . . . . . . . . . . . . 2 . . . . . . . . . . . Alpha 7 1 | . . . . . . . . . . . . . . . . . . . . . . . . . . . . 1 . . . . . Fortress 1 | . . . . . . . . . . . . . . . . . . . . . . . . . . . . 1 . . . . . Subdweller 8 | . . 8 . . . . . . . . . . . . . . . . . . . . . . . . . . . . . . . Best Kill Streak 16 | 2 4 2 4 5 4 3 2 2 1 4 . . 2 5 1 1 . 1 2 2 2 5 . 4 2 9 5 6 7 16 2 12 6 Combat Bots Only 16 | . 3 2 3 5 3 3 2 2 . 4 . . 2 5 . 1 . . 2 2 2 5 . 4 2 4 5 4 7 16 2 10 6 Max Kills in Single Turn 7 | 1 2 1 3 3 3 2 1 1 1 2 . 1 1 2 1 1 . 1 1 1 1 3 . 1 1 7 2 2 2 3 2 4 2 Gunslinging 1 | . . . . . . 1 . . . . . . . . . . . . . . . 1 . . . . . . . . . . . Exploded 4 | . 2 . 3 3 1 . . 1 . 2 . . . . . . . . . . . . . . . 1 2 2 1 3 1 4 1 Melee 1 | . . . 1 1 1 1 1 1 . . . . 1 1 . . . . . 1 1 1 . . . . . 1 1 1 1 . . Uniques/NPCs Destroyed 6 | . . . . . . . . . . . . . . . . . . . . . . . . . . . . . . . . 2 4 MAIN.C Shell (-1/Command) MAIN.C (-1/Command) A8 (-1/Access_0) A6 (-1/Access_0) A5 (-1/Access_0) Architect (-1/Access_0) Combat | -11 -10 -10 -8 -8 -8 -8 -7 -7 -7 -7 -7 -7 -6 -6 -5 -5 -5 -5 -5 -5 -4 -4 -4 -4 -3 -3 -2 -2 -2 -2 -1 -1 -1 -------- Run | Yrd Mat Sub Mat Gar Mat Gar Fac Gar Fac Gar Fac Gar Fac Gar Fac Ext Cet Arc Hub Gar Fac Gar Fac Gar Res Tes Res Qua Sec Gar Acc Com Ac0 Hostile Shots Fired 3868 | . 27 23 115 67 18 101 23 62 8 29 25 31 19 113 21 36 13 . 203 38 102 187 . 92 28 128 85 234 495 194 186 519 646 Missed 1014 | . 10 7 27 20 3 21 4 24 4 11 10 9 7 44 6 10 3 . 43 13 30 44 . 28 8 36 19 54 131 44 60 101 183 Intercepted 53 | . . . . . . . . . . . . . . . . . . . . . . . . . . . . 1 21 . . 31 . Deflected 47 | . . . . . . . . . . . . . . . . . . . . . . . . . . . . . . . . 47 . Hits 2854 | . 17 16 88 47 15 80 19 38 4 18 15 22 12 69 15 26 10 . 160 25 72 143 . 64 20 92 66 180 364 150 126 418 463 Melee 26 | . . . . . . . 1 1 . . . . . 3 . . . . . . . 3 . 5 . . . . 2 9 . . 2 Projectile 2828 | . 17 16 88 47 15 80 18 37 4 18 15 22 12 66 15 26 10 . 160 25 72 140 . 59 20 92 66 180 362 141 126 418 461 AOE 43 | . . . . . . . . 6 . . . 1 . 2 . . . . . . . . . . 3 . . . 23 1 . 7 . Critical Strikes 158 | . 2 . 6 2 . 2 . 2 . . . 1 . 1 1 1 1 . 5 1 4 13 . 4 2 6 2 17 20 6 1 15 43 Actively Blocked 82 | . . . . . . . . . . . . . . . . . . . . . . 3 . . . . . . 15 6 . 15 43 Part Disruptions 15 | . . . . . . . . . . . . . . . . . . . 2 . . . . . . 3 . 1 1 . . 5 3 Damage Taken 52960 | . 214 364 1348 746 235 1147 369 562 45 249 111 361 244 612 411 680 375 60 3820 566 1255 3247 . 1271 516 2243 1283 3271 5514 3140 2515 7252 8934 Core 4129 | . 50 42 90 74 34 179 49 89 6 39 . 35 29 55 31 109 . 30 531 34 76 148 . 149 57 207 145 114 614 70 50 180 813 Absorbed by Shields 13872 | . . . . . . 75 . 102 . 44 . . . 172 . 47 28 . . 19 . 426 . 149 . . . 1522 3857 1121 . 577 5733 Reduced by Siege Mode 1001 | . . . . . . . . . . . . . . . . . . . . . . 126 . . . . 21 73 244 91 30 139 277 Redirected to Shielding 303 | . . . . . . . . . . . . . . 17 45 . 24 . . . . . . . 21 80 . . . . . . 116 Ignored by Resistances 5229 | . . . . . . . . . . . . . . . . . . . . . . . . . . . . . 761 . 461 3675 332 Regen/Repaired (Parts) 11251 | . . . . . 78 . . . 85 . 3 . . . 146 127 46 . 67 . . . . . . 151 98 1336 3968 1155 568 941 2482 Core Remaining (%) 56 | 100 . 63 . . . 31 . . . . . 68 . 90 . . . . . 26 . . . 67 . 79 . . . 27 . . 9 Volleys Fired 1688 | 11 36 40 13 14 24 38 16 33 8 28 6 28 47 39 30 53 . 9 14 36 30 85 . 58 26 90 45 99 220 112 91 146 163 Largest 6 | 2 2 2 2 1 3 3 1 1 1 1 1 2 2 3 1 1 . 1 1 3 5 6 . 4 4 4 5 4 5 4 4 6 3 Hottest 439 | 70 136 160 160 69 135 135 5 45 5 85 5 170 170 205 90 90 . 35 90 160 230 188 . 274 276 312 425 349 353 323 323 439 326 Shots Fired 2850 | 22 67 62 14 14 46 64 16 33 8 28 6 31 53 69 30 53 . 9 14 51 56 247 . 117 29 143 94 203 426 163 101 365 216 Gun 534 | 22 5 . 1 2 33 44 . 13 . . . . . 7 . . . 6 3 25 29 198 . 26 1 32 15 . 27 . . 45 . Cannon 1794 | . 58 62 10 . . . . . . 1 . 6 35 48 12 20 . . 6 . 16 9 . 55 12 84 70 196 381 126 73 305 209 Launcher 60 | . 2 . 3 3 . . . . . 2 . . . . . 2 . . 1 . . . . . 1 . 2 3 4 15 3 12 7 Special 462 | . 2 . . 9 13 20 16 20 8 25 6 25 18 14 18 31 . 3 4 26 11 40 . 36 15 27 7 4 14 22 25 3 . Kinetic 1008 | 11 3 . . . . 2 . . . . . . . 7 . . . 6 3 10 29 198 . 52 3 56 25 80 197 53 7 193 73 Thermal 876 | 11 62 62 11 2 . . . . . 1 . 6 35 48 12 20 . . 6 . 10 . . 35 2 32 45 94 125 6 19 125 107 Explosive 60 | . 2 . 3 3 . . . . . 2 . . . . . 2 . . 1 . . . . . 1 . 2 3 4 15 3 12 7 Electromagnetic 459 | . . . . . 33 42 . 13 . . . . . . . . . . . 15 6 9 . 6 8 28 15 22 86 68 47 32 29 Robot Hit Streak 33 | 6 8 10 5 9 12 8 8 8 10 12 18 24 13 10 9 12 . 8 3 6 9 32 . 23 24 27 28 29 33 14 11 23 15 Robot Miss Streak 7 | 1 3 3 1 2 3 3 1 2 1 2 . 2 1 2 3 2 . 1 1 3 6 4 . 4 1 4 4 3 4 3 3 3 7 Penetration Max 2 | . . . . . . . . . . . . . . 1 . . . . 1 . . 1 . 1 . 1 2 . . . . . . Secondary Targets 9 | . . . . . . 3 . . . . . . . . . . . . . . . 6 . . . . . . . . . . . Max Gunslinging Chain 1 | . . . . . . 1 . . . . . . . . . . . . . . . 1 . . . . . . . . . . . Shots Hit Robots 2187 | 16 37 31 71 33 37 94 19 36 9 27 6 26 33 52 21 39 . 16 6 62 39 194 . 79 29 88 63 130 286 114 74 261 159 Core Hits 879 | 6 20 13 27 17 26 35 5 13 1 9 . 4 5 20 3 7 . 5 2 18 10 51 . 22 14 53 26 55 103 61 29 130 89 Critical Kills 28 | . . . . . . . . . . . . . . . . . . . 1 1 2 3 . 2 1 5 4 5 3 . . 1 . Critical Parts Destroyed 32 | . . . . . . . . . . . . . . . . . . 1 . 1 3 14 . 5 1 3 4 . . . . . . Critical Strikes 133 | 2 . . 5 4 1 2 1 . . 1 . 1 . . . . . 1 1 5 5 26 . 8 2 13 10 10 12 8 2 7 6 Burn 2 | 2 . . . . . . . . . . . . . . . . . . . . . . . . . . . . . . . . . Meltdown 11 | . . . . . . . . . . . . . . . . . . . . . . . . 1 . . 1 5 3 . . 1 . Destroy 42 | . . . . . . . . . . . . . . . . . . 1 1 1 . 20 . 3 . 8 8 . . . . . . Blast 30 | . . . . . . . . . . . . . . . . . . . . . . . . 1 . 4 1 2 6 4 1 5 6 Corrupt 6 | . . . . . . . . . . . . . . . . . . . . 1 . . . . . 1 . . 2 1 . 1 . Smash 17 | . . . . . . . . . . . . . . . . . . . . 1 5 6 . 3 2 . . . . . . . . Sever 25 | . . . 5 4 1 2 1 . . 1 . 1 . . . . . . . 2 . . . . . . . 3 1 3 1 . . Melee Attacks 703 | . . . 89 56 23 57 21 20 14 17 4 9 40 19 9 1 . 8 6 45 20 23 . 9 17 1 . 50 51 13 57 24 . Kinetic 3 | . . . . . . . . . . . . . . . . . . . . . . . . . . . . 3 . . . . . Impact 73 | . . . . . . . . . . . . . . . . . . . . 3 20 23 . 9 17 1 . . . . . . . Slashing 627 | . . . 89 56 23 57 21 20 14 17 4 9 40 19 9 1 . 8 6 42 . . . . . . . 47 51 13 57 24 . Piercing . | . . . . . . . . . . . . . . . . . . . . . . . . . . . . . . . . . . Sneak Attacks 78 | . . . 12 1 2 3 3 4 2 . . 2 3 3 1 1 . 6 . 1 3 7 . 2 4 . . 3 3 1 9 2 . Combat Hostiles . | . . . . . . . . . . . . . . . . . . . . . . . . . . . . . . . . . . Follow-up Attacks 22 | . . . 9 10 3 . . . . . . . . . . . . . . . . . . . . . . . . . . . . Damage Inflicted 112414 | 178 989 741 3268 1303 1007 3209 335 624 163 870 . 478 709 1608 245 484 . 820 166 2960 1096 6056 . 2381 1245 4214 2715 8038 13354 7696 4139 16932 24391 Guns 9204 | 178 20 . . 18 490 548 . 143 . . . . . 106 . . . 159 87 307 318 4591 . 476 . 216 152 . 466 . . 929 . Cannons 55047 | . 739 741 221 . . . . . . 30 . 172 445 1024 161 402 . . 64 . 258 148 . 1646 335 2575 1915 5093 9545 3516 1628 10077 14312 Explosions 25783 | . 230 . 276 332 201 159 . 63 . 383 . . . . . . . . . . . 95 . . 286 1403 648 1011 1265 3540 1002 4810 10079 Melee 22274 | . . . 2771 953 316 2502 335 418 163 457 . 306 264 478 84 82 . 661 . 2653 520 1222 . 203 624 . . 1934 2078 640 1509 1101 . Ramming 50 | . . . . . . . . . . . . . . . . . . . 15 . . . . . . 20 . . . . . 15 . Kinetic 25690 | 63 7 . . . . 22 . . . . . . . 106 . . . 159 87 178 318 4591 . 1039 . 983 383 2017 5089 1360 300 5846 3142 Thermal 38913 | 115 752 741 221 18 201 159 . 63 . 30 . 172 445 1024 161 402 . . 64 . 258 95 . 955 41 1581 1345 2699 2394 349 131 5099 19398 Explosive 13807 | . 230 . 276 332 . . . . . 383 . . . . . . . . . . . . . . 286 590 461 695 945 3325 1002 3939 1343 Electromagnetic 11753 | . . . . . 490 526 . 143 . . . . . . . . . . . 129 . 148 . 184 294 1040 526 766 2848 2022 1197 932 508 Impact 2651 | . . . . . . . . . . . . . . . . . . . . 82 520 1222 . 203 624 . . . . . . . . Slashing 19550 | . . . 2771 953 316 2502 335 418 163 457 . 306 264 478 84 82 . 661 . 2571 . . . . . . . 1861 2078 640 1509 1101 . Piercing . | . . . . . . . . . . . . . . . . . . . . . . . . . . . . . . . . . . Highest Corruption 25 | . 1 1 . . . 5 . . . . . 1 . . . 1 1 2 21 21 . 4 4 5 . 4 . 21 25 25 . . . Average Corruption 10 | . 1 1 . . . 2 . . . . . 1 . . . 1 1 1 14 21 . 3 4 4 . 2 . 17 23 25 . . . Corruption Purged 3 | . . . . . . . . . . . . . . . . . . 3 . . . . . . . . . . . . . . . Corruption Blocked . | . . . . . . . . . . . . . . . . . . . . . . . . . . . . . . . . . . Effects 574 | . 6 18 . . . 18 . . . . . 4 . . . 4 3 1 4 58 . 30 6 37 . 18 . 107 174 86 . . . Message Errors 133 | . 1 5 . . . 4 . . . . . 2 . . . . . . 1 14 . 9 1 8 . 4 . 29 34 21 . . . Matter Fused 123 | . 3 5 . . . 3 . . . . . 1 . . . 2 . . . 15 . 11 1 10 . 6 . 21 30 15 . . . Heat Flow Errors 58 | . . 3 . . . 3 . . . . . 1 . . . 1 1 . . 7 . 5 2 3 . 1 . 9 14 8 . . . Energy Discharges 57 | . 1 1 . . . 3 . . . . . . . . . . . . 1 8 . 2 . 3 . 1 . 10 15 12 . . . Parts Rejected 9 | . . . . . . 1 . . . . . . . . . . . . . . . . . . . . . 4 2 2 . . . Parts Fused 10 | . . 1 . . . 1 . . . . . . . . . . . . . 1 . . . . . . . 2 5 . . . . Data Loss (minor) 61 | . . 1 . . . 1 . . . . . . . . . . 2 1 . 5 . . 1 6 . . . 10 28 6 . . . Data Loss (major) 36 | . . 1 . . . 2 . . . . . . . . . . . . . 5 . 1 1 3 . 1 . 5 10 7 . . . Misfires 20 | . . . . . . . . . . . . . . . . . . . . 2 . . . 1 . 2 . 5 7 3 . . . Alerts 16 | . 1 1 . . . . . . . . . . . . . 1 . . . . . 1 . 1 . 2 . 1 3 5 . . . Misdirections 13 | . . . . . . . . . . . . . . . . . . . 2 . . . . . . . . 3 6 2 . . . Weapon Failures 38 | . . . . . . . . . . . . . . . . . . . . 1 . 1 . 2 . 1 . 8 20 5 . . . Overload Shots . | . . . . . . . . . . . . . . . . . . . . . . . . . . . . . . . . . . Overflow Damage 5798 | . 68 . 365 92 57 183 . 46 30 111 . 58 171 59 44 . . 230 . 82 252 517 . 262 204 163 67 503 378 368 207 601 680 Projectiles 1431 | . 22 . 9 . . . . . . . . . 31 2 . . . . . . 17 . . 59 . 76 . 226 176 52 . 273 488 Explosions 822 | . 46 . 1 37 . 6 . . . 50 . . . . . . . . . . . . . . . 87 67 70 . 188 . 78 192 Melee 3545 | . . . 355 55 57 177 . 46 30 61 . 58 140 57 44 . . 230 . 82 235 517 . 203 204 . . 207 202 128 207 250 . Knockbacks 120 | . . . . . . . . . . . . . . . . . . . . . 2 1 . 8 . 8 . 16 28 4 1 25 27 Impact 3 | . . . . . . . . . . . . . . . . . . . . . 1 1 . 1 . . . . . . . . . Kinetic 112 | . . . . . . . . . . . . . . . . . . . . . . . . 6 . 7 . 15 27 4 1 25 27 Secondary 5 | . . . . . . . . . . . . . . . . . . . . . 1 . . 1 . 1 . 1 1 . . . . Self-Inflicted Damage 1086 | . . . 21 32 . 39 . 48 . . . . . . . . . . . . . . . . . 380 . . . 83 99 . 384 Shots 18 | . . . 1 3 . 1 . 1 . . . . . . . . . . . . . . . . . 4 . . . 2 1 . 5 Rammed 4 | . . . 1 . . . . . . . . . . . . . . . 2 . . . . . . 1 . . . . . . . Targets Rammed 5 | . . . 1 . . . . . . . . . . . . . . . 2 . . . . . . 1 . . . . . 1 . Kicked 1 | . . . . . . . . . . . . . . . . . . . . . . . . . . . . . . . . 1 . Crushed . | . . . . . . . . . . . . . . . . . . . . . . . . . . . . . . . . . . Highest Temperature 641 | 80 195 233 231 52 147 284 . 9 . 30 . 153 251 348 112 168 228 . 108 264 48 333 233 202 168 246 545 214 641 388 435 342 215 Average Temperature 97 | 35 86 46 91 20 39 113 . 7 . 12 . 74 71 99 48 57 126 . 40 97 20 113 128 76 68 77 191 66 135 107 101 122 62 Received Heat Transfer 5431 | . 156 54 792 315 90 117 81 72 9 60 18 39 27 80 30 78 54 . 669 26 78 396 . 238 21 275 81 444 567 241 99 200 24 Effects 23 | . . . . . . . . . . . . . . . . . . . . . . . . . . . . . 14 4 1 4 . Shutdowns 2 | . . . . . . . . . . . . . . . . . . . . . . . . . . . . . 2 . . . . Energy Bleed 2 | . . . . . . . . . . . . . . . . . . . . . . . . . . . . . 1 1 . . . Interference 10 | . . . . . . . . . . . . . . . . . . . . . . . . . . . . . 3 3 . 4 . Matter Decay 1 | . . . . . . . . . . . . . . . . . . . . . . . . . . . . . 1 . . . . Short Circuit 1 | . . . . . . . . . . . . . . . . . . . . . . . . . . . . . 1 . . . . Damage (minor) 1 | . . . . . . . . . . . . . . . . . . . . . . . . . . . . . 1 . . . . Damage (major) 5 | . . . . . . . . . . . . . . . . . . . . . . . . . . . . . 4 . 1 . . Damage (core) 1 | . . . . . . . . . . . . . . . . . . . . . . . . . . . . . 1 . . . . Siege Activations 21 | . . . . . . . . . . . . . . . . . . . . . . 3 . . . 1 1 1 7 2 1 1 4 Total Turns 427 | . . . . . . . . . . . . . . . . . . . . . . 81 . . . 4 55 35 76 36 11 31 98 Longest Duration 55 | . . . . . . . . . . . . . . . . . . . . . . 38 . . . 4 55 35 15 30 11 31 50 Martial Activations . | . . . . . . . . . . . . . . . . . . . . . . . . . . . . . . . . . . Shielding Activations 4 | . . . . . . . . . . . . . . . . . . . . . . . . . . . . . . . . 4 . Total Turns 219 | . . . . . . . . . . . . . . . . . . . . . . . . . . . . . . . . 219 . Longest Duration 114 | . . . . . . . . . . . . . . . . . . . . . . . . . . . . . . . . 114 . Robots Disrupted 4 | . . . . . . . . . . . . . . . . . . . . . . 1 . . . 2 . . 1 . . . . Combat Hostiles 4 | . . . . . . . . . . . . . . . . . . . . . . 1 . . . 2 . . 1 . . . . Robots Corrupted 56 | . . . . . 1 . . . . . . . . . . . . . . . 3 5 . 3 2 2 1 5 12 9 5 4 4 Combat Hostiles 50 | . . . . . . . . . . . . . . . . . . . . . 3 4 . 1 2 1 1 4 12 9 5 4 4 Parts Fried 84 | . . . . . 4 . . . . . . . . . . . . . . 1 4 4 . 4 7 7 1 9 14 10 6 2 11 Impact Corruptions 25 | . . . . . . . . . . . . . . . . . . . . 1 7 11 . 3 2 . . 1 . . . . . Robots Melted 11 | . . . . . . . . . . . . . . . . . . . . . . . . 1 . . 1 5 3 . . 1 . Combat Hostiles 9 | . . . . . . . . . . . . . . . . . . . . . . . . . . . 1 4 3 . . 1 . Parts Melted 38 | 1 . 3 . . . 3 1 . . . . . . 3 . 2 . . . . 2 2 . 1 . 3 . 12 . . . 5 . Heat Transferred 21822 | 481 1369 1147 296 37 250 200 . 100 . 37 . 128 518 1390 250 600 . . 100 . 259 50 . 1027 37 1192 1073 2140 2013 261 111 2231 4525 Parts Sabotaged . | . . . . . . . . . . . . . . . . . . . . . . . . . . . . . . . . . . Parts Stolen . | . . . . . . . . . . . . . . . . . . . . . . . . . . . . . . . . . . Parts Stripped 18 | . . . . . . . . . . . . . . . . . . . . . . . . . . . . 18 . . . . . Power Chain Reactions 19 | . . . . . 4 2 . 1 . . . . . . . . . . . . . 1 . . . 4 . . 2 3 . 1 1 Alert | -11 -10 -10 -8 -8 -8 -8 -7 -7 -7 -7 -7 -7 -6 -6 -5 -5 -5 -5 -5 -5 -4 -4 -4 -4 -3 -3 -2 -2 -2 -2 -1 -1 -1 ------- Run | Yrd Mat Sub Mat Gar Mat Gar Fac Gar Fac Gar Fac Gar Fac Gar Fac Ext Cet Arc Hub Gar Fac Gar Fac Gar Res Tes Res Qua Sec Gar Acc Com Ac0 Maximum Alert Level 5 | . . . 1 2 1 3 2 3 2 3 2 3 2 3 3 1 . . 2 3 2 3 2 2 1 2 1 2 3 5 4 4 . Low Security (%) 25 | 100 100 . 82 22 14 12 . . 4 5 . 3 15 . . 94 100 100 14 . . . 10 45 88 40 95 66 . . . . . Level 1 25 | . . . 17 10 85 16 70 17 66 19 80 16 64 3 48 5 . . 13 29 95 36 . 41 11 56 4 16 31 . . . . Level 2 19 | . . . . 67 . 35 29 21 28 44 19 30 19 51 49 . . . 72 52 4 32 89 13 . 3 . 16 33 . . 1 . Level 3 14 | . . . . . . 35 . 60 . 30 . 48 . 45 2 . . . . 18 . 30 . . . . . . 35 15 . 39 . Level 4 12 | . . . . . . . . . . . . . . . . . . . . . . . . . . . . . . 36 100 59 . Level 5 1 | . . . . . . . . . . . . . . . . . . . . . . . . . . . . . . 48 . . . High Security . | . . . . . . . . . . . . . . . . . . . . . . . . . . . . . . . . . . Max Security . | . . . . . . . . . . . . . . . . . . . . . . . . . . . . . . . . . . Peak Influence 2206 | 5 97 . 244 687 335 893 468 1000 525 788 423 1084 569 1058 730 211 127 136 677 798 418 1039 545 425 238 405 211 472 941 2206 1455 1093 . Initial 1323 | . . . . 95 334 67 468 252 525 162 413 186 569 346 555 154 43 28 9 284 418 235 545 105 238 . 211 24 246 705 1323 904 . Average 475 | 1 30 . 114 411 244 526 372 713 337 555 341 706 307 712 390 131 70 84 456 509 323 570 458 217 97 217 50 181 567 1582 1304 847 . Influence Increases 25696 | 20 400 . 657 652 466 1056 267 888 263 836 338 1078 1117 1052 653 784 317 198 1042 724 471 1084 26 650 227 943 426 1129 1842 1581 1198 984 2327 Destroy 0b10 Robot/C 10065 | . 160 . 400 300 220 500 140 380 100 340 140 440 420 560 220 300 140 80 340 340 225 540 . 240 75 345 195 525 840 615 390 555 . Destroy 0b10 Robot/NC 650 | 20 40 . 55 . 45 20 20 5 10 15 . 5 30 . 25 30 10 15 5 20 . . 4 16 36 44 12 44 36 8 48 32 . Destroy Leader 1568 | . 50 . 84 10 88 40 34 10 50 40 50 50 104 40 80 34 . . 82 20 64 48 . 32 4 42 34 66 158 72 86 96 . Allied During Kill 3161 | . . . . . 8 73 27 150 91 192 144 295 442 135 72 300 150 95 427 52 65 126 2 42 20 35 5 15 37 44 117 . . Successful Hack 640 | . 11 . 11 18 23 . 32 12 . 10 . 38 11 12 12 40 . . 41 12 23 9 20 33 24 99 7 2 58 12 62 8 . Select Force Hacks 60 | . 60 . . . . . . . . . . . . . . . . . . . . . . . . . . . . . . . . Disable Machine 891 | . 45 . . . . . . . . 30 . . 30 . 120 . 15 . 75 . 36 . . . 12 96 24 120 120 60 . 48 60 Anti-Garrison Action 2546 | . . . . 150 . 300 . 300 . 200 . 250 . 200 . . . . . 275 . 303 . 265 . . . . . 303 . . . Destroy Structure 5116 | . 19 . 32 39 22 18 14 16 12 9 4 . 50 15 124 80 2 8 72 5 46 58 . 22 44 234 125 333 386 407 408 245 2267 Partial Spotted 36 | . . . . . . . . . . . . . . . . . . . . . . . . . . 12 . 12 12 . . . . Lose Combat Pursuer 813 | . 15 . 75 135 60 105 . 15 . . . . 30 90 . . . . . . 12 . . . 12 36 24 12 120 60 12 . . Miscellaneous 150 | . . . . . . . . . . . . . . . . . . . . . . . . . . . . . 75 . 75 . . Influence Decreases 23489 | 20 367 33 510 112 1049 267 799 249 1031 280 859 261 1706 489 1394 1023 324 243 662 332 932 382 914 376 652 567 759 733 1341 315 1991 1155 1362 Entered New Map 7996 | . . 17 . 52 353 37 425 109 475 70 375 81 515 149 503 163 35 43 17 122 380 102 494 46 187 . 165 19 193 235 883 509 1242 Time Decay 8727 | 20 367 16 450 . 416 . 334 . 386 . 294 . 571 . 446 510 206 160 335 . 482 . 120 . 345 417 366 664 698 . 618 506 . Lost Part 770 | . . . 60 40 20 50 . . . 10 . . 10 20 . 20 . . 80 10 10 60 . 30 10 50 10 30 20 10 10 120 90 Lost Ally 3521 | . . . . 20 110 180 40 140 20 200 40 180 160 320 70 180 83 40 230 200 60 220 . 300 110 100 68 20 130 70 180 20 30 Purge Threat 2475 | . . . . . 150 . . . 150 . 150 . 450 . 375 150 . . . . . . 300 . . . 150 . 300 . 300 . . Squads Dispatched 81 | . 2 . 2 . 1 . 1 . 2 . 2 . 8 . 2 2 . . 5 . 2 . . . 7 5 4 8 13 . 8 7 . Investigation 8 | . 2 . . . 1 . . . . . 1 . 1 . . . . . . . . . . . 2 . . 1 . . . . . Extermination 33 | . . . . . . . 1 . 2 . 1 . 3 . 1 . . . 1 . 2 . . . . 2 1 6 7 . 3 3 . Reinforcement 23 | . . . 2 . . . . . . . . . 1 . 1 2 . . 3 . . . . . 5 3 2 1 3 . . . . Assault 12 | . . . . . . . . . . . . . . . . . . . . . . . . . . . . . 3 . 5 4 . Garrison 5 | . . . . . . . . . . . . . 3 . . . . . 1 . . . . . . . 1 . . . . . . Intercept . | . . . . . . . . . . . . . . . . . . . . . . . . . . . . . . . . . . Searches Triggered . | . . . . . . . . . . . . . . . . . . . . . . . . . . . . . . . . . . Construction Impeded 2 | . . . . . . . . . . . . . . . . . . . 1 . . . . . 1 . . . . . . . . Haulers Reinforced 5 | . . . . . . . . . . . . . 1 . . . . . . . . . . . 2 . . . 2 . . . . Active Scanning Responses . | . . . . . . . . . . . . . . . . . . . . . . . . . . . . . . . . . . Cargo Convoy Interrupts . | . . . . . . . . . . . . . . . . . . . . . . . . . . . . . . . . . . Stealth | -11 -10 -10 -8 -8 -8 -8 -7 -7 -7 -7 -7 -7 -6 -6 -5 -5 -5 -5 -5 -5 -4 -4 -4 -4 -3 -3 -2 -2 -2 -2 -1 -1 -1 --------- Run | Yrd Mat Sub Mat Gar Mat Gar Fac Gar Fac Gar Fac Gar Fac Gar Fac Ext Cet Arc Hub Gar Fac Gar Fac Gar Res Tes Res Qua Sec Gar Acc Com Ac0 Distress Signals 53 | . 1 . 4 . 4 . 2 . . . . . 2 . 1 . 2 . 1 . . . . . 5 1 4 1 2 . 1 22 . Communications Jammed 463 | . . . . . . . 9 2 . 11 . . . . . . . . . . 26 . . 8 14 132 49 15 91 . 100 6 . Distress Signals 462 | . . . . . . . 9 2 . 11 . . . . . . . . . . 26 . . 8 14 132 49 14 91 . 100 6 . Times Spotted 955 | . 13 8 34 19 24 32 17 29 7 21 5 33 21 35 20 27 10 12 35 34 22 50 1 31 28 41 26 48 80 52 42 49 49 Peak Tracking Total 17 | . 3 1 5 8 6 5 5 5 1 7 2 11 3 7 4 6 5 3 17 7 5 5 . 12 5 4 5 5 6 7 5 9 4 Tactical Retreats 45 | . 1 . 4 6 3 3 . 1 . . . . 2 3 . . . . . . 1 . . . 1 2 2 1 9 5 1 . . Traps | -11 -10 -10 -8 -8 -8 -8 -7 -7 -7 -7 -7 -7 -6 -6 -5 -5 -5 -5 -5 -5 -4 -4 -4 -4 -3 -3 -2 -2 -2 -2 -1 -1 -1 ------- Run | Yrd Mat Sub Mat Gar Mat Gar Fac Gar Fac Gar Fac Gar Fac Gar Fac Ext Cet Arc Hub Gar Fac Gar Fac Gar Res Tes Res Qua Sec Gar Acc Com Ac0 Traps Triggered 48 | . 1 2 . 2 1 8 1 2 . 2 . 1 2 2 1 2 . . . 1 1 4 . 6 . 2 . 3 1 3 . . . Indirectly . | . . . . . . . . . . . . . . . . . . . . . . . . . . . . . . . . . . Trap Hack Attempts . | . . . . . . . . . . . . . . . . . . . . . . . . . . . . . . . . . . Triggered . | . . . . . . . . . . . . . . . . . . . . . . . . . . . . . . . . . . Disarmed . | . . . . . . . . . . . . . . . . . . . . . . . . . . . . . . . . . . Reprogrammed . | . . . . . . . . . . . . . . . . . . . . . . . . . . . . . . . . . . Reused . | . . . . . . . . . . . . . . . . . . . . . . . . . . . . . . . . . . Traps Extracted . | . . . . . . . . . . . . . . . . . . . . . . . . . . . . . . . . . . Installed . | . . . . . . . . . . . . . . . . . . . . . . . . . . . . . . . . . . Triggered . | . . . . . . . . . . . . . . . . . . . . . . . . . . . . . . . . . . Machines | -11 -10 -10 -8 -8 -8 -8 -7 -7 -7 -7 -7 -7 -6 -6 -5 -5 -5 -5 -5 -5 -4 -4 -4 -4 -3 -3 -2 -2 -2 -2 -1 -1 -1 ---------- Run | Yrd Mat Sub Mat Gar Mat Gar Fac Gar Fac Gar Fac Gar Fac Gar Fac Ext Cet Arc Hub Gar Fac Gar Fac Gar Res Tes Res Qua Sec Gar Acc Com Ac0 Machines Disabled 129 | . 4 . . 3 . 5 . 6 . 6 . 5 2 4 8 1 1 . 5 6 3 7 . 6 1 8 3 11 11 14 . 4 5 Max in Single Turn 2 | . 1 . . 1 . 1 . 1 . 1 . 1 1 1 1 1 1 . 1 1 1 1 . 1 1 2 2 1 1 2 . 1 1 Garrison Access 8 | . . . . . . . . . . . . . . . . . . . . . . . . . 1 . 1 1 . . 5 . . Garrison Relay 46 | . . . . 3 . 4 . 6 . 4 . 5 . 4 . . . . . 4 . 6 . 5 . . . . . 5 . . . Phase Generator 1 | . . . . . . . . . . . . . . . . . . . . . . 1 . . . . . . . . . . . Network Hub 1 | . . . . . . . . . . . . . . . . . . . 1 . . . . . . . . . . . . . . Machines Repaired . | . . . . . . . . . . . . . . . . . . . . . . . . . . . . . . . . . . Machines Dismantled 2 | . . . . . . . . . . . . . . . . . 1 . 1 . . . . . . . . . . . . . . Machines Sabotaged . | . . . . . . . . . . . . . . . . . . . . . . . . . . . . . . . . . . Overloaded Fab Kills . | . . . . . . . . . . . . . . . . . . . . . . . . . . . . . . . . . . Hacking | -11 -10 -10 -8 -8 -8 -8 -7 -7 -7 -7 -7 -7 -6 -6 -5 -5 -5 -5 -5 -5 -4 -4 -4 -4 -3 -3 -2 -2 -2 -2 -1 -1 -1 --------- Run | Yrd Mat Sub Mat Gar Mat Gar Fac Gar Fac Gar Fac Gar Fac Gar Fac Ext Cet Arc Hub Gar Fac Gar Fac Gar Res Tes Res Qua Sec Gar Acc Com Ac0 Machines Accessed 151 | . 8 1 3 2 8 2 8 4 4 1 5 2 13 2 3 9 1 . 4 1 6 3 4 2 3 11 4 6 13 3 12 3 . Terminals 100 | . 6 . 1 2 5 2 4 4 1 1 2 2 7 2 . 9 1 . 3 1 3 3 3 2 1 7 2 4 10 3 6 3 . Fabricators 12 | . . . . . . . . . 2 . 1 . 3 . 2 . . . . . 1 . . . 1 1 . . . . 1 . . Repair Stations 2 | . . . . . . . 1 . . . . . . . . . . . . . . . . . 1 . . . . . . . . Recycling Units 4 | . 2 . 1 . . . 1 . . . . . . . . . . . . . . . . . . . . . . . . . . Scanalyzers 15 | . . . . . 2 . 1 . . . 1 . 2 . 1 . . . . . 1 . . . . 3 1 1 2 . . . . Garrison Access 17 | . . . 1 . 1 . 1 . 1 . 1 . 1 . . . . . 1 . 1 . 1 . . . 1 1 1 . 5 . . Total Hacks 363 | . 17 1 5 3 26 3 15 6 8 1 9 4 33 7 6 18 4 . 8 3 16 9 14 7 7 28 13 17 30 5 34 6 . Successful 183 | . 8 1 4 3 19 2 6 3 3 1 4 3 17 2 3 8 . . 7 1 10 2 7 3 4 13 6 8 14 1 18 2 . Failed 178 | . 8 . 1 . 7 1 9 3 5 . 5 1 16 5 3 10 4 . 1 2 6 7 7 4 3 15 7 8 16 4 16 4 . Catastrophic 42 | . 3 . . . 1 . 1 1 . . . . . 1 1 2 1 . . . 1 3 3 . 2 4 1 4 6 2 5 . . Database Lockouts 2 | . 1 . . . . . . . . . . . . . . . . . . . . . . . . . . 1 . . . . . Manual 128 | . 13 . 3 1 10 1 4 1 5 . 4 2 14 1 3 2 1 . 4 . 4 4 7 1 2 13 5 5 13 . . 5 . Terminals 255 | . 15 . 3 3 19 3 7 6 1 1 4 4 20 7 . 18 4 . 7 3 7 9 13 7 2 17 9 8 22 5 25 6 . Fabricators 33 | . . . . . . . . . 6 . 2 . 7 . 5 . . . . . 3 . . . 4 4 . . . . 2 . . Repair Stations 4 | . . . . . . . 3 . . . . . . . . . . . . . . . . . 1 . . . . . . . . Recycling Units 4 | . 2 . 1 . . . 1 . . . . . . . . . . . . . . . . . . . . . . . . . . Scanalyzers 45 | . . . . . 6 . 3 . . . 2 . 5 . 1 . . . . . 5 . . . . 7 2 7 7 . . . . Garrison Access 21 | . . . 1 . 1 . 1 . 1 . 1 . 1 . . . . . 1 . 1 . 1 . . . 2 2 1 . 7 . . Terminal Hacks 89 | . 4 1 1 3 9 2 1 3 . 1 1 3 7 2 . 8 . . 3 1 1 2 5 3 . 5 4 . 7 1 10 1 . Part Schematic 3 | . 1 . . . . . . . . . . . . . . . . . . . . . 1 . . 1 . . . . . . . Robot Schematic 3 | . . . . . 1 . . . . . . . . . . . . . . . . . 1 . . . 1 . . . . . . Prototype ID Bank 4 | . . . . . 1 . . . . . . . . . . . . . . . . . . . . . . . 1 . 2 . . Open Door 11 | . . . . 1 . . . 1 . . . . . . . 6 . . . . . . . . . 1 . . 1 . . 1 . Branch Access Points 2 | . . . . . 1 . . . . . . . . . . . . . . . . . . . . . 1 . . . . . . Emergency Access Points 3 | . . . . . . . . 1 . . . . . 1 . . . . . . . . . 1 . . . . . . . . . Machine Index 2 | . . . . . . . . . . . . . 1 . . . . . . . . . . . . . . . . . 1 . . Garrison Index 1 | . . . . . . . 1 . . . . . . . . . . . . . . . . . . . . . . . . . . Unreport Threat 15 | . . . . . 1 . . . . . 1 . 3 . . 1 . . . . . . 2 . . . 1 . 3 . 3 . . Locate Traps 9 | . 2 . 1 . . . . . . . . . 1 . . 1 . . . . 1 . . . . 1 . . 1 . 1 . . Recall Extermination 2 | . . . . . . . . . . . . . 1 . . . . . . . . . . . . . . . . . 1 . . Hauler Manifests 3 | . . . . . 1 . . . . . . . . . . . . . . . . . 1 . . 1 . . . . . . . Registered Components 4 | . . . . . 1 . . . . . . . . . . . . . 1 . . . . . . . . . 1 . 1 . . Registered Prototypes 2 | . . . . . . . . . . . . . 1 . . . . . . . . . . . . . . . . . 1 . . Zone Layout 8 | . 1 . . . 3 . . . . . . . . . . . . . 2 . . . . . . 1 1 . . . . . . Garrison Registry 9 | . . . . 1 . 1 . 1 . 1 . 1 . 1 . . . . . 1 . 1 . 1 . . . . . . . . . Patrol Navigation 4 | . . . . . . 1 . . . . . 1 . . . . . . . . . . . 1 . . . . . 1 . . . Security Stations 3 | . . . . 1 . . . . . . . 1 . . . . . . . . . 1 . . . . . . . . . . . Proto ID Catalog 1 | . . 1 . . . . . . . . . . . . . . . . . . . . . . . . . . . . . . . Fabricator Hacks 11 | . . . . . . . . . 1 . . . 2 . 2 . . . . . 1 . . . 2 2 . . . . 1 . . Network Status 5 | . . . . . . . . . 1 . . . 1 . 1 . . . . . 1 . . . . . . . . . 1 . . Load Schematic 2 | . . . . . . . . . . . . . . . . . . . . . . . . . 1 1 . . . . . . . Build 4 | . . . . . . . . . . . . . 1 . 1 . . . . . . . . . 1 1 . . . . . . . Repair Station Hacks . | . . . . . . . . . . . . . . . . . . . . . . . . . . . . . . . . . . Recycling Unit Hacks . | . . . . . . . . . . . . . . . . . . . . . . . . . . . . . . . . . . Scanalyzer 26 | . . . . . 6 . 2 . . . 2 . 3 . . . . . . . 4 . . . . 1 . 5 3 . . . . Insert Component 11 | . . . . . 2 . . . . . 1 . 3 . . . . . . . 1 . . . . 1 . 2 1 . . . . Analyze 5 | . . . . . 1 . . . . . 1 . . . . . . . . . 1 . . . . . . 2 . . . . . Retrieve Study 10 | . . . . . 3 . 2 . . . . . . . . . . . . . 2 . . . . . . 1 2 . . . . Garrison Access Hacks 21 | . . . 1 . 1 . 1 . 1 . 1 . 1 . . . . . 1 . 1 . 1 . . . 2 2 1 . 7 . . Unlock Access 10 | . . . 1 . 1 . 1 . 1 . 1 . 1 . . . . . 1 . 1 . 1 . . . . . 1 . . . . Seal Access 7 | . . . . . . . . . . . . . . . . . . . . . . . . . . . 1 1 . . 5 . . Coupler Status 4 | . . . . . . . . . . . . . . . . . . . . . . . . . . . 1 1 . . 2 . . Unauthorized Hacks 36 | . 4 . 2 . 3 . 2 . 1 . . . 4 . 1 . . . 3 . 3 . 1 . 2 5 . 1 3 . . 1 . Terminals 20 | . 2 . 1 . 3 . 1 . . . . . 2 . . . . . 3 . 1 . 1 . . 3 . . 2 . . 1 . Track 1 | . . . . . . . . . . . . . . . . . . . 1 . . . . . . . . . . . . . . Assimilate 1 | . . . . . . . . . . . . . . . . . . . . . . . . . . 1 . . . . . . . Botnet 11 | . 1 . 1 . 1 . 1 . . . . . 1 . . . . . 1 . 1 . 1 . . 1 . . 1 . . 1 . Operators 7 | . 1 . . . 2 . . . . . . . 1 . . . . . 1 . . . . . . 1 . . 1 . . . . Fabricators 9 | . . . . . . . . . 1 . . . 2 . 1 . . . . . 2 . . . 1 2 . . . . . . . Prioritize 1 | . . . . . . . . . . . . . . . . . . . . . . . . . . 1 . . . . . . . Liberate 2 | . . . . . . . . . . . . . . . . . . . . . 1 . . . . 1 . . . . . . . Haulers 6 | . . . . . . . . . 1 . . . 2 . 1 . . . . . 1 . . . 1 . . . . . . . . Repair Stations 2 | . . . . . . . 1 . . . . . . . . . . . . . . . . . 1 . . . . . . . . Mechanics 2 | . . . . . . . 1 . . . . . . . . . . . . . . . . . 1 . . . . . . . . Recycling Units 3 | . 2 . 1 . . . . . . . . . . . . . . . . . . . . . . . . . . . . . . Mask 1 | . . . 1 . . . . . . . . . . . . . . . . . . . . . . . . . . . . . . Tunnel 2 | . 2 . . . . . . . . . . . . . . . . . . . . . . . . . . . . . . . . Scanalyzers 2 | . . . . . . . . . . . . . . . . . . . . . . . . . . . . 1 1 . . . . Researchers 2 | . . . . . . . . . . . . . . . . . . . . . . . . . . . . 1 1 . . . . Garrison Access . | . . . . . . . . . . . . . . . . . . . . . . . . . . . . . . . . . . Data Cores Recovered 2 | . . . . . . . . . . . . . . . . . . . . . . . 1 . . . . 1 . . . . . Used . | . . . . . . . . . . . . . . . . . . . . . . . . . . . . . . . . . . Hacking Detections 109 | . 5 . 1 1 5 2 7 4 3 . 4 2 12 2 3 4 2 . 3 . 3 3 2 1 3 7 3 4 8 3 9 3 . Full Trace Events 4 | . . . . . . . . . . . 1 . . . . . . . . . . . . . 1 . . 1 . 1 . . . Feedback Events . | . . . . . . . . . . . . . . . . . . . . . . . . . . . . . . . . . . Feedback Blocked . | . . . . . . . . . . . . . . . . . . . . . . . . . . . . . . . . . . Robot Schematics Acquired 12 | . . . . . 1 . . . . . . . . . . . . . . . . . 1 . . 4 1 2 3 . . . . Robots Built 4 | . . . . . . . . . . . . . . . . . . . . . . . . . 2 2 . . . . . . . Authchips 2 | . . . . . . . . . . . . . . . . . . . . . . . . . 1 1 . . . . . . . Time 140 | . . . . . . . . . . . . . . . . . . . . . . . . . 56 84 . . . . . . . Total Robot Build Rating 24 | . . . . . . . . . . . . . . . . . . . . . . . . . 12 12 . . . . . . . Part Schematics Acquired 34 | . 1 . . . 1 . . . . . 1 . . . . . . . . . 1 . 1 . . 15 4 9 1 . . . . Parts Built 3 | . . . . . . . . . . . . . 2 . 1 . . . . . . . . . . . . . . . . . . Authchips . | . . . . . . . . . . . . . . . . . . . . . . . . . . . . . . . . . . Time 208 | . . . . . . . . . . . . . 106 . 102 . . . . . . . . . . . . . . . . . . Total Part Build Rating 20 | . . . . . . . . . . . . . 12 . 8 . . . . . . . . . . . . . . . . . . Part Studies Acquired 10 | . . . . . 3 . 2 . . . . . . . . . . . . . 2 . . . . . . 1 2 . . . . Parts Repaired . | . . . . . . . . . . . . . . . . . . . . . . . . . . . . . . . . . . Time . | . . . . . . . . . . . . . . . . . . . . . . . . . . . . . . . . . . Parts Recycled . | . . . . . . . . . . . . . . . . . . . . . . . . . . . . . . . . . . Recycled Matter . | . . . . . . . . . . . . . . . . . . . . . . . . . . . . . . . . . . Retrieved Matter . | . . . . . . . . . . . . . . . . . . . . . . . . . . . . . . . . . . Retrieved Components . | . . . . . . . . . . . . . . . . . . . . . . . . . . . . . . . . . . Parts Scanalyzed 4 | . . . . . 1 . . . . . 1 . . . . . . . . . 1 . . . . . . 1 . . . . . Part Schematics Acquired 4 | . . . . . 1 . . . . . 1 . . . . . . . . . 1 . . . . . . 1 . . . . . Parts Damaged 1 | . . . . . . . . . . . . . . . . . . . . . 1 . . . . . . . . . . . . Bothacking | -11 -10 -10 -8 -8 -8 -8 -7 -7 -7 -7 -7 -7 -6 -6 -5 -5 -5 -5 -5 -5 -4 -4 -4 -4 -3 -3 -2 -2 -2 -2 -1 -1 -1 ------------ Run | Yrd Mat Sub Mat Gar Mat Gar Fac Gar Fac Gar Fac Gar Fac Gar Fac Ext Cet Arc Hub Gar Fac Gar Fac Gar Res Tes Res Qua Sec Gar Acc Com Ac0 Used RIF Installer 12 | . . . . 1 . 2 . 1 . 1 . 1 . 2 . . . . . 1 . 1 . 1 . . . . . 1 . . . Hotswap 1 | . . . . . . . . 1 . . . . . . . . . . . . . . . . . . . . . . . . . Code Merge 2 | . . . . . . . . . . . . 1 . 1 . . . . . . . . . . . . . . . . . . . Command Fork 1 | . . . . . . 1 . . . . . . . . . . . . . . . . . . . . . . . . . . . Threat Obfuscator 1 | . . . . . . . . . . . . . . . . . . . . 1 . . . . . . . . . . . . . Signal Jammer 1 | . . . . . . . . . . . . . . . . . . . . . . . . . . . . . . 1 . . . Zone Cloak 1 | . . . . . . . . . . . . . . 1 . . . . . . . . . . . . . . . . . . . Patrol Navigation 1 | . . . . . . . . . . 1 . . . . . . . . . . . . . . . . . . . . . . . Structural Interface 1 | . . . . . . 1 . . . . . . . . . . . . . . . . . . . . . . . . . . . Program Shield 1 | . . . . . . . . . . . . . . . . . . . . . . 1 . . . . . . . . . . . Autoassimilate 1 | . . . . . . . . . . . . . . . . . . . . . . . . 1 . . . . . . . . . Robots Hacked 254 | . . . . 2 9 8 10 10 6 13 5 12 14 9 10 7 . 2 2 15 11 18 . 14 12 14 7 3 12 7 21 1 . Non-combat 53 | . . . . . 4 . 2 . 3 . 2 . 4 . 4 . . 1 1 . 4 . . . 7 4 4 1 3 . 8 1 . Combat 201 | . . . . 2 5 8 8 10 3 13 3 12 10 9 6 7 . 1 1 15 7 18 . 14 5 10 3 2 9 7 13 . . Autoassimilated 2 | . . . . . . . . . . . . . . . . . . . . . . . . . . 1 1 . . . . . . Robot Hacks Applied 270 | . . . . 2 9 8 11 10 7 14 5 13 14 10 14 7 . 2 3 15 11 18 . 14 13 18 7 3 12 7 22 1 . parse_system 16 | . . . . . 1 . 1 1 . 1 . 2 1 1 2 1 . 1 . . . 1 . . . 1 . 1 . 1 . . . hold_bot 1 | . . . . . . . . . . . . . . . . . . . . . . . . . . . 1 . . . . . . ignore_repairs 23 | . . . . . 1 . 2 . . . . . 3 . 1 . . . 2 . . . . . 2 3 3 . 2 . 4 . . drop_inventory 10 | . . . . . 1 . . . 1 . 1 . . . 2 . . . . . 2 . . . 1 1 . . . . 1 . . ignore_parts 2 | . . . . . . . . . . . . . . . . . . . . . 2 . . . . . . . . . . . . purge_threat 4 | . . . . . . . . . 1 . . . . . 3 . . . . . . . . . . . . . . . . . . block_reporting 2 | . . . . . . . . . . . . . . . . . . . . . . . . . 1 . . 1 . . . . . map_route 5 | . . . . . 1 . . . . . . . . . . . . . . . . . . . 2 . . . . . 2 . . disable_scanner 3 | . . . . . . . . . . . . . . . . . . . . . . . . . . 1 . . 2 . . . . report_analyses 6 | . . . . . . . . . . . . . . . . . . . . . . . . . . 6 . . . . . . . scatter_targeting 4 | . . . . . . . . . . 1 . . . . . . . . . . 1 . . . . 1 . . 1 . . . . spike_heat 5 | . . . . . . . 1 . . 1 . . 1 . . . . . . . 1 1 . . . . . . . . . . . overload_power 1 | . . . . . . . . . . . . . . . . . . . . . . . . . . . . . . 1 . . . amplify_resonance 21 | . . . . . 1 3 1 1 . 1 . 2 . 1 . 1 . . . 1 . 1 . 2 1 . 1 . . 2 2 . . wipe_record 1 | . . . . . . . . . . . . . . . . . . . . . . . . . . . . . . . 1 . . reboot_system 28 | . . . . 1 . 2 1 2 2 2 2 . 2 2 1 1 . . . 1 1 3 . 1 1 1 . . . . 2 . . overwrite_iff 61 | . . . . . 2 3 2 2 . 4 . 5 2 2 2 3 . . 1 9 . 6 . 5 2 1 1 . . 3 6 . . streamctrl_high 2 | . . . . . . . . . . . . . . . . 1 . . . . . . . . . 1 . . . . . . . formatsys_low 16 | . . . . . 1 . . . 1 . 1 . . . 1 . . 1 . . . . . . 2 2 . 1 4 . 1 1 . formatsys_high 58 | . . . . 1 1 . 3 4 2 4 1 4 5 4 2 . . . . 4 4 6 . 6 1 . 1 . 3 . 2 . . formatsys_deep 1 | . . . . . . . . . . . . . . . . . . . . . . . . . . . . . . . 1 . . Relay Couplers Released 200 | . . . . 13 . 18 . 20 . 14 . 20 . 16 . . . . . 16 . 29 . 22 1 . 1 4 . 21 5 . . Machine Destruction 193 | . . . . 13 . 18 . 20 . 14 . 20 . 16 . . . . . 16 . 26 . 18 1 . 1 4 . 21 5 . . Programmers 7 | . . . . . . . . . . . . . . . . . . . . . . 3 . 4 . . . . . . . . . Attached 58 | . . . . 1 3 3 2 5 2 5 2 5 3 2 2 1 . . . 5 . 7 . 3 1 . . . . 5 1 . . Merged Code Value 400 | . . . . . . . . . . . . . . 29 . . . . . 26 16 118 . 94 . . . 22 . 46 49 . . Fabnet Peak Effective % . | . . . . . . . . . . . . . . . . . . . . . . . . . . . . . . . . . . Robots Rewired 36 | . . . . 3 . 6 . 3 . 3 . 3 . . 1 10 . . . . . 2 . . . 2 . . . 3 . . . Allies Hacked 9 | . . . . . . . . . 1 1 . 3 . . 2 . . . . . 1 . . . . . . . 1 . . . . Hacks Repelled . | . . . . . . . . . . . . . . . . . . . . . . . . . . . . . . . . . . Allies | -11 -10 -10 -8 -8 -8 -8 -7 -7 -7 -7 -7 -7 -6 -6 -5 -5 -5 -5 -5 -5 -4 -4 -4 -4 -3 -3 -2 -2 -2 -2 -1 -1 -1 -------- Run | Yrd Mat Sub Mat Gar Mat Gar Fac Gar Fac Gar Fac Gar Fac Gar Fac Ext Cet Arc Hub Gar Fac Gar Fac Gar Res Tes Res Qua Sec Gar Acc Com Ac0 Total Allies 230 | . . . . 4 4 9 6 13 3 14 2 17 7 7 7 24 5 1 2 19 5 18 . 12 7 10 3 1 8 6 14 2 . Largest Group 16 | . . . . 3 5 7 4 7 9 11 12 12 13 9 3 16 13 12 11 4 3 6 5 5 4 4 3 1 2 3 5 2 . Highest-Rated Group 784 | . . . . 70 99 101 86 248 298 423 455 430 334 277 75 578 784 784 590 110 135 183 130 239 209 167 110 62 128 224 314 42 . Highest-Rated Ally 159 | . . . . 25 25 16 29 40 40 62 62 62 41 41 49 159 159 143 96 49 49 99 47 49 58 58 64 62 64 119 116 36 . Total Orders 99 | . . . . . 3 1 . 3 1 8 1 2 . 3 4 4 6 . 4 2 2 4 . 3 . 10 . 2 3 12 13 1 7 STAY 43 | . . . . . 1 1 . 2 . 4 . 2 . 1 . 2 5 . 3 1 1 2 . 1 . 5 . 1 1 6 4 . . ROAM 2 | . . . . . . . . . . . . . . . 1 . . . . . . . . 1 . . . . . . . . . FOLLOW 26 | . . . . . . . . 1 . 4 . . . 2 . 2 1 . 1 1 1 2 . 1 . 2 . 1 1 3 3 . . AID 13 | . . . . . 2 . . . 1 . 1 . . . . . . . . . . . . . . 3 . . 1 3 1 1 . EXPLORE 13 | . . . . . . . . . . . . . . . 3 . . . . . . . . . . . . . . . 5 . 5 RETURN 2 | . . . . . . . . . . . . . . . . . . . . . . . . . . . . . . . . . 2 Ally Attacks 1569 | . . . . 2 20 69 56 79 29 60 28 103 116 66 58 188 71 33 113 64 32 67 3 58 41 52 14 8 34 18 87 . . Total Damage 38772 | . . . . 46 338 831 671 1382 745 1386 855 2894 2319 1581 2806 3854 1844 988 3984 1227 1012 1841 54 1338 1272 745 244 . 935 651 2929 . . Kills 264 | . . . . . 4 10 7 15 7 13 7 23 21 13 16 20 9 4 18 14 4 10 1 7 8 5 1 . 4 3 20 . . Allies Corrupted 16 | . . . . . . . . 1 . . . . . 1 . . . . 6 . 1 1 . 3 . 1 . . . 1 1 . . Allies Melted 6 | . . . . . 1 . . . . . . . . . . 1 . . 1 1 . . . . . . 1 . 1 . . . . Borg Created 16 | . . . . . . . . . . . . . . . 7 2 2 1 4 . . . . . . . . . . . . . . Largest Collective 5 | . . . . . . . . . . . . . . . 4 3 5 3 4 . . . . . . . . . . . . . . Intel | -11 -10 -10 -8 -8 -8 -8 -7 -7 -7 -7 -7 -7 -6 -6 -5 -5 -5 -5 -5 -5 -4 -4 -4 -4 -3 -3 -2 -2 -2 -2 -1 -1 -1 ------- Run | Yrd Mat Sub Mat Gar Mat Gar Fac Gar Fac Gar Fac Gar Fac Gar Fac Ext Cet Arc Hub Gar Fac Gar Fac Gar Res Tes Res Qua Sec Gar Acc Com Ac0 Active Infowar (turns) 32441 | 26 951 4330 982 . . . 418 942 649 1012 298 547 147 . 1 . . . 57 . 1138 1529 254 1486 846 1552 841 2766 2957 1634 2060 4187 831 Optics 20986 | . . . . . . . . . . . . . . . . . . . . . 43 1529 254 1486 846 1552 841 2766 2957 1634 2060 4187 831 Sensors 58 | . . . . . . . . . . . . . . . 1 . . . 57 . . . . . . . . . . . . . . Terrain 334 | . . . . . . . . . . . . . . . . . . . . . . . . . . . . . . . 105 . 229 Structural 1128 | . . 1128 . . . . . . . . . . . . . . . . . . . . . . . . . . . . . . . Seismic 4840 | 26 951 3202 661 . . . . . . . . . . . . . . . . . . . . . . . . . . . . . . T.N.C. 500 | . . . 500 . . . . . . . . . . . . . . . . . . . . . . . . . . . . . . Machine Analysis 435 | . . . . . . . . . 348 87 . . . . . . . . . . . . . . . . . . . . . . . Spoofing 1 | . . . . . . . . . . . . . . . . . . . . . . . . 1 . . . . . . . . . Jamming 15873 | . . . . . . . 418 942 301 925 298 547 147 . . . . . . . 1125 1176 . 313 745 1548 693 2476 2953 1266 . . . ECM 2 | . . . . . . . . . . . . . . . . . . . . . . . . . . . . 2 . . . . . Robot Analysis Total . | . . . . . . . . . . . . . . . . . . . . . . . . . . . . . . . . . . Derelict Logs Recovered 1 | . . 1 . . . . . . . . . . . . . . . . . . . . . . . . . . . . . . . Drone Launches 15 | . . . . . . . . . . . . . . . 3 . . . . . . . . . . . . . . . 5 . 7 Drone Recoveries 8 | . . . . . . . . . . . . . . . 1 . . . . . . . . . . . . . . . 3 . 4 Exploration | -11 -10 -10 -8 -8 -8 -8 -7 -7 -7 -7 -7 -7 -6 -6 -5 -5 -5 -5 -5 -5 -4 -4 -4 -4 -3 -3 -2 -2 -2 -2 -1 -1 -1 ------------- Run | Yrd Mat Sub Mat Gar Mat Gar Fac Gar Fac Gar Fac Gar Fac Gar Fac Ext Cet Arc Hub Gar Fac Gar Fac Gar Res Tes Res Qua Sec Gar Acc Com Ac0 Turns Passed 46372 | 212 1378 4425 1193 842 1007 1485 745 947 917 1148 647 996 1726 1135 1117 1388 437 323 800 1301 1257 1529 254 1486 846 1552 841 2766 2957 1634 2060 4187 834 Spaces Moved 24156 | 101 715 2612 455 489 689 988 585 641 630 678 403 560 956 610 570 680 183 147 376 621 638 674 148 620 458 788 393 1310 1253 843 1050 2020 272 Core 9 | 2 . . . . . . . . . . . . . . . . . . . . . . . . . . . . . . . . 7 Treads 14193 | 99 715 2612 386 . . . . . . . . . . . . 1 . . 28 621 638 674 148 620 458 788 393 1310 1192 843 1038 1396 233 Legs 624 | . . . . . . . . . . . . . . . . . . . . . . . . . . . . . . . . 624 . Wheels 9225 | . . . 69 489 689 988 585 641 630 678 403 560 956 610 570 679 183 147 348 . . . . . . . . . . . . . . Hover . | . . . . . . . . . . . . . . . . . . . . . . . . . . . . . . . . . . Flight . | . . . . . . . . . . . . . . . . . . . . . . . . . . . . . . . . . . Fastest Speed 50 | 50 160 160 125 110 95 110 100 120 120 135 135 135 150 150 150 165 165 165 150 160 160 160 160 160 155 155 160 160 158 146 151 127 50 Average Speed 151 | 157 160 160 175 121 109 110 103 120 131 142 147 148 150 150 164 165 179 166 178 160 163 160 160 198 155 155 160 160 159 151 155 156 146 Slowest Speed 280 | 160 160 160 240 170 145 110 120 120 135 150 150 150 150 150 165 240 180 180 240 240 200 200 160 220 160 160 160 250 232 158 229 280 221 Overloaded Moves . | . . . . . . . . . . . . . . . . . . . . . . . . . . . . . . . . . . Propulsion Burnouts . | . . . . . . . . . . . . . . . . . . . . . . . . . . . . . . . . . . Robots Hopped . | . . . . . . . . . . . . . . . . . . . . . . . . . . . . . . . . . . Potential Cave-ins 1 | . . . . . . . . . . . . . . . . . . . . . . . . . . . . . 1 . . . . Cave-ins Triggered . | . . . . . . . . . . . . . . . . . . . . . . . . . . . . . . . . . . Teleports 3 | . . . . . . . . . . . . . . . . . . . . . . . . . . . . 1 . . . 1 1 Microwarps 6 | . . . . . . . . . . . . . . . . . . . . . . . . . . . . . 4 . 1 . 1 Exploration Rate (%) 56 | 5 96 93 29 62 70 83 20 90 24 81 12 66 26 70 25 86 73 88 32 78 25 86 6 80 15 96 20 94 51 97 50 64 44 Regions Visited 33 Branch Regions 10 Pre-discovered Areas 3 | . 2 1 . . . . . . . . . . . . . . . . . . . . . . . . . . . . . . . Known Exits Taken 13 | . . . 1 . 1 . 1 . 1 . 1 . 1 . 1 . . . 1 . 1 . 1 . 1 . 1 . 1 . . . . Unknown Exits Taken 10 | 1 1 1 . . . . . . . . . . . . . 1 1 1 . . . . . . . 1 . 1 . . 1 1 . Scrap Searched 6 | . . 6 . . . . . . . . . . . . . . . . . . . . . . . . . . . . . . . Spaces Dug 514 | . 11 9 27 24 12 1 13 5 12 9 4 . 51 5 9 37 . . 32 . 7 1 . 1 25 4 12 31 54 31 58 15 14 Terrain Destroyed 1994 | . 25 16 29 24 26 10 13 13 12 9 4 . 55 6 11 40 . 1 32 . 21 20 . 11 28 115 37 128 189 138 83 161 737 Melee 223 | . . . 10 15 12 1 13 5 12 4 4 . 36 5 6 . . . 6 . 6 1 . 1 8 . . 17 14 . 35 12 . Projectile 373 | . 2 16 2 . . . . . . . . . 19 1 5 6 . 1 3 . 15 10 . 10 3 20 17 57 94 13 16 24 39 AOE 1398 | . 23 . 17 9 14 9 . 8 . 5 . . . . . 34 . . 23 . . 9 . . 17 95 20 54 81 125 32 125 698 Terrain Rammed . | . . . . . . . . . . . . . . . . . . . . . . . . . . . . . . . . . . Walls Destroyed . | . . . . . . . . . . . . . . . . . . . . . . . . . . . . . . . . . . Machines Disabled . | . . . . . . . . . . . . . . . . . . . . . . . . . . . . . . . . . . Actions | -11 -10 -10 -8 -8 -8 -8 -7 -7 -7 -7 -7 -7 -6 -6 -5 -5 -5 -5 -5 -5 -4 -4 -4 -4 -3 -3 -2 -2 -2 -2 -1 -1 -1 --------- Run | Yrd Mat Sub Mat Gar Mat Gar Fac Gar Fac Gar Fac Gar Fac Gar Fac Ext Cet Arc Hub Gar Fac Gar Fac Gar Res Tes Res Qua Sec Gar Acc Com Ac0 Total 30711 | 130 882 2781 688 647 882 1240 683 762 691 820 445 690 1139 750 709 903 278 204 462 830 777 947 160 779 544 1014 536 1723 1818 1104 1332 2804 557 Wait 2145 | 3 90 69 87 39 93 45 19 11 28 39 23 40 59 29 21 128 65 19 26 68 41 76 . 30 14 58 55 97 170 82 75 426 20 Move 24029 | 100 714 2611 455 488 689 987 585 640 629 677 402 559 955 609 569 679 182 146 376 620 638 673 147 619 457 787 392 1309 1196 842 1038 2019 240 Hop . | . . . . . . . . . . . . . . . . . . . . . . . . . . . . . . . . . . Pick Up 454 | 8 10 8 17 14 13 13 11 9 1 14 1 11 9 16 17 7 6 3 4 19 18 20 1 11 8 22 10 32 36 7 14 33 31 Fast Attach 170 | 7 3 1 8 1 1 3 4 2 2 2 . 2 2 1 2 . 3 2 . 12 2 9 1 8 1 6 6 26 14 12 7 20 . Attach 203 | . . 1 5 6 5 6 4 5 . 6 . 6 4 4 3 4 . 3 3 8 5 8 . 4 6 10 4 12 25 2 11 28 15 Detach 86 | . . 2 1 2 4 2 1 4 . 4 . 5 . 1 3 . . 2 1 1 . 2 . . 3 1 2 8 9 2 7 14 5 Swap 586 | 1 14 36 15 16 20 20 9 10 4 8 5 12 12 10 21 17 4 4 16 8 10 30 6 15 7 15 9 34 60 22 16 47 53 Drop 444 | . 15 13 8 9 14 11 12 7 3 8 2 6 7 11 17 4 7 5 4 12 13 18 2 15 5 22 12 51 32 10 16 43 30 Fire 1688 | 11 36 40 13 14 24 38 16 33 8 28 6 28 47 39 30 53 . 9 14 36 30 85 . 58 26 90 45 99 220 112 91 146 163 Melee 671 | . . . 77 42 18 57 21 20 14 17 4 9 40 19 9 1 . 8 6 44 20 23 . 9 17 1 . 50 51 13 57 24 . Ram 1 | . . . . . . . . . . . . . . . . . . . 1 . . . . . . . . . . . . . . Kick 1 | . . . . . . . . . . . . . . . . . . . . . . . . . . . . . . . . 1 . Crush 4 | . . . 1 . . . . . . . . . . . . . . . 2 . . . . . . 1 . . . . . . . Escape Stasis 150 | . . . . 16 . 57 . 16 . 16 . 8 . 8 8 8 . . . . . . . 8 . . . 5 . . . . . Rewire 27 | . . . . . 1 . . 4 2 1 1 2 2 2 2 . . 1 . 2 . 1 . 1 . 1 . . 2 . . 2 . Trap . | . . . . . . . . . . . . . . . . . . . . . . . . . . . . . . . . . . Miscellaneous 52 | . . . 1 . . 1 1 1 . . 1 2 2 1 7 2 11 2 9 . . 2 3 1 . . 1 . 3 . . 1 . Route ------- -11/Scrapyard -10/Materials (discovered 5 exits: [*Mat x3] / [*Min] / *Sub) -10/Subcaves (discovered 2 exits: *Mat x2) -8/Materials -8/Garrison (discovered 3 exits: *Mat x3) -8/Materials (discovered 3 exits: *Fac x2 / Gar) -8/Garrison (discovered 3 exits: *Fac x3) -7/Factory (discovered 2 exits: [*Low] / Gar) -7/Garrison (discovered 4 exits: *Fac x4) -7/Factory (discovered 4 exits: *Fac / [*Sto] / [*Low] / Gar) -7/Garrison (discovered 4 exits: *Fac x3 / *Fac) -7/Factory -7/Garrison (discovered 3 exits: *Fac x3) -6/Factory (discovered 4 exits: *Fac / [*Low x2] / Gar) -6/Garrison (discovered 3 exits: *Fac x3) -5/Factory (discovered 2 exits: *Fac / *Ext) -5/Extension (discovered 2 exits: *Fac / *Cet) -5/Cetus (discovered 2 exits: *Fac / [*Arc]) -5/Archives (discovered 3 exits: *Fac / *Hub x2) -5/Hub_04(d) (discovered 2 exits: *Fac / Gar) -5/Garrison (discovered 3 exits: *Fac x3) -4/Factory (discovered 4 exits: *Res x2 / [*Upp] / Gar) -4/Garrison (discovered 3 exits: *Fac x3) -4/Factory -4/Garrison (discovered 3 exits: *Res x3) -3/Research (discovered 2 exits: *Tes x2) -3/Testing -2/Research (discovered 2 exits: *Qua x2) -2/Quarantine (discovered 3 exits: *Acc / *Sec / [*Frg]) -2/Section 7 (discovered 2 exits: *Acc / Gar) -2/Garrison (discovered 3 exits: *Acc x3) -1/Access -1/Command (discovered 3 exits: [*Sur x2] / [*Ac0]) -1/Access_0 Near Former Tau Ceti IV History --------- Turn | Location | Event 25 | -11/Scrapyard | Discovered new exit (range 14) 213 | -11/Scrapyard | Entered Materials 314 | -10/Materials | Build established: Mutant 339 | -10/Materials | Discovered new exit (range 10) 505 | -10/Materials | Discovered new exit (range 15) 705 | -10/Materials | Discovered new exit (range 16) 1088 | -10/Materials | Discovered new exit (range 14) 1317 | -10/Materials | Discovered new exit (range 16) 1318 | -10/Materials | Central database locked down 1591 | -10/Materials | Entered Subcaves 1671 | -10/Subcaves | A swath of the cavern ceiling suddenly collapsed 1743 | -10/Subcaves | A swath of the cavern ceiling suddenly collapsed 1758 | -10/Subcaves | Learned location of Zion (-6) 2080 | -10/Subcaves | Shifting Twisted Machinery released Sub. Power Source 2085 | -10/Subcaves | Shifting Twisted Machinery released Sub. Beam Cannon 2087 | -10/Subcaves | Shifting Twisted Machinery released Sub. Beam Cannon 2697 | -10/Subcaves | Visited 4L-MR0's lab 2927 | -10/Subcaves | Shifting Twisted Machinery released Battle Rifle 3056 | -10/Subcaves | Shifting Twisted Machinery released Mak. Light Armor Plating 4269 | -10/Subcaves | Discovered new exit (range 13) 4843 | -10/Subcaves | Discovered new exit (range 4) 4950 | -10/Subcaves | Ambushed by Subdweller buried in earth 5746 | -10/Subcaves | Found Prototype Special Melee Weapon 6016 | -10/Subcaves | Entered Materials 6016 | -8/Materials | Evolved 4 slots: Propulsion x1, Utility x2, Weapon x1 6317 | -8/Materials | Build established: Subdweller-Mutant 6826 | -8/Materials | Build established: Scavenger-Mutant 7208 | -8/Materials | Identified exit to Garrison 7209 | -8/Materials | Entered Garrison 7355 | -8/Garrison | Triggered checkpoint 7388 | -8/Garrison | Learned Materials security intel 7388 | -8/Garrison | Discovered new exit (range 48) 7388 | -8/Garrison | Discovered new exit (range 76) 7388 | -8/Garrison | Discovered new exit (range 73) 7397 | -8/Garrison | Garrison Relay disabled 7587 | -8/Garrison | Installed Relay Interface Framework 7627 | -8/Garrison | Garrison Relay disabled 7711 | -8/Garrison | Triggered checkpoint 7763 | -8/Garrison | Triggered checkpoint 7831 | -8/Garrison | Triggered checkpoint 7878 | -8/Garrison | Garrison Relay disabled 8051 | -8/Garrison | Entered Materials 8051 | -8/Materials | Accompanied by 3 allies 8148 | -8/Materials | Discovered new exit (range 15) 9040 | -8/Materials | Discovered new exit (range 10) 9058 | -8/Materials | Identified exit to Garrison 9058 | -8/Materials | Entered Garrison 9208 | -8/Garrison | Triggered checkpoint 9244 | -8/Garrison | Garrison Relay disabled 9312 | -8/Garrison | Triggered checkpoint 9332 | -8/Garrison | Triggered checkpoint 9471 | -8/Garrison | Core integrity fell below 50% 9539 | -8/Garrison | Expanded RIF knowledge: Structural Interface 9550 | -8/Garrison | Discovered new exit (range 3) 9584 | -8/Garrison | Triggered checkpoint 9602 | -8/Garrison | Garrison Relay disabled 9750 | -8/Garrison | Garrison Relay disabled 9896 | -8/Garrison | Triggered checkpoint 9900 | -8/Garrison | Triggered checkpoint 9918 | -8/Garrison | Triggered checkpoint 9996 | -8/Garrison | Discovered new exit (range 52) 9996 | -8/Garrison | Discovered new exit (range 19) 9996 | -8/Garrison | Discovered new exit (range 48) 10193 | -8/Garrison | Triggered checkpoint 10275 | -8/Garrison | Lost 5 allies 10414 | -8/Garrison | Expanded RIF knowledge: Command Fork 10435 | -8/Garrison | Garrison Relay disabled 10543 | -8/Garrison | Entered Factory 10543 | -7/Factory | Evolved 2 slots: Propulsion x1, Utility x1 10742 | -7/Factory | Build established: Bothacker-Mutant 10759 | -7/Factory | Discovered new exit (range 5) 11288 | -7/Factory | Identified exit to Garrison 11288 | -7/Factory | Entered Garrison 11288 | -7/Garrison | Accompanied by 3 allies 11314 | -7/Garrison | Rescued a captive Derelict 11314 | -7/Garrison | Rescued a captive Derelict 11320 | -7/Garrison | Triggered checkpoint 11363 | -7/Garrison | Garrison Relay disabled 11526 | -7/Garrison | Triggered checkpoint 11582 | -7/Garrison | Garrison Relay disabled 11604 | -7/Garrison | Discovered new exit (range 8) 11650 | -7/Garrison | Triggered checkpoint 11718 | -7/Garrison | Garrison Relay disabled 11728 | -7/Garrison | Garrison Relay disabled 11804 | -7/Garrison | Triggered checkpoint 11841 | -7/Garrison | Lost 4 allies 11866 | -7/Garrison | Garrison Relay disabled 11918 | -7/Garrison | Discovered new exit (range 14) 11950 | -7/Garrison | Expanded RIF knowledge: Hotswap 12000 | -7/Garrison | Triggered checkpoint 12088 | -7/Garrison | Triggered checkpoint 12107 | -7/Garrison | Garrison Relay disabled 12120 | -7/Garrison | Discovered new exit (range 7) 12120 | -7/Garrison | Discovered new exit (range 53) 12120 | -7/Garrison | Discovered new exit (range 77) 12120 | -7/Garrison | Discovered new exit (range 29) 12172 | -7/Garrison | Triggered checkpoint 12235 | -7/Garrison | Entered Factory 12235 | -7/Factory | Accompanied by 7 allies 12403 | -7/Factory | Allied Derelicts emerged from ambush trap array 12463 | -7/Factory | Discovered new exit (range 5) 12558 | -7/Factory | Discovered new exit (range 8) 12626 | -7/Factory | Discovered new exit (range 15) 13110 | -7/Factory | Build established: Commander-Mutant 13148 | -7/Factory | Identified exit to Garrison 13152 | -7/Factory | Entered Garrison 13152 | -7/Garrison | Accompanied by 7 allies 13286 | -7/Garrison | Triggered checkpoint 13331 | -7/Garrison | Discovered new exit (range 66) 13331 | -7/Garrison | Discovered new exit (range 73) 13331 | -7/Garrison | Discovered new exit (range 30) 13331 | -7/Garrison | Discovered new exit (range 30) 13342 | -7/Garrison | Garrison Relay disabled 13423 | -7/Garrison | Triggered checkpoint 13430 | -7/Garrison | Triggered checkpoint 13431 | -7/Garrison | Triggered checkpoint 13484 | -7/Garrison | Lost 8 allies 13649 | -7/Garrison | Build established: Bothacker-Mutant 13670 | -7/Garrison | Expanded RIF knowledge: Patrol Navigation 13704 | -7/Garrison | Found embedded Infiltrators 13740 | -7/Garrison | Triggered checkpoint 13783 | -7/Garrison | Garrison Relay disabled 13942 | -7/Garrison | Triggered checkpoint 13952 | -7/Garrison | Garrison Relay disabled 14002 | -7/Garrison | Garrison Relay disabled 14074 | -7/Garrison | Triggered checkpoint 14300 | -7/Garrison | Entered Factory 14300 | -7/Factory | Accompanied by 11 allies 14914 | -7/Factory | Identified exit to Garrison 14947 | -7/Factory | Entered Garrison 14947 | -7/Garrison | Accompanied by 11 allies 14980 | -7/Garrison | Triggered checkpoint 15011 | -7/Garrison | Garrison Relay disabled 15135 | -7/Garrison | Triggered checkpoint 15150 | -7/Garrison | Triggered checkpoint 15202 | -7/Garrison | Lost 5 allies 15233 | -7/Garrison | Triggered checkpoint 15294 | -7/Garrison | Garrison Relay disabled 15324 | -7/Garrison | Discovered new exit (range 9) 15513 | -7/Garrison | Triggered checkpoint 15530 | -7/Garrison | Garrison Relay disabled 15547 | -7/Garrison | Garrison Relay disabled 15645 | -7/Garrison | Expanded RIF knowledge: Code Merge 15712 | -7/Garrison | Discovered new exit (range 12) 15715 | -7/Garrison | Triggered checkpoint 15743 | -7/Garrison | Triggered checkpoint 15759 | -7/Garrison | Garrison Relay disabled 15798 | -7/Garrison | Learned Factory security intel 15801 | -7/Garrison | Discovered new exit (range 12) 15801 | -7/Garrison | Discovered new exit (range 84) 15801 | -7/Garrison | Discovered new exit (range 67) 15943 | -7/Garrison | Entered Factory 15943 | -6/Factory | Accompanied by 12 allies 15943 | -6/Factory | Evolved 2 slots: Utility x1, Weapon x1 16129 | -6/Factory | Fabricated Imp. Plasma Cutter (x2) 16250 | -6/Factory | Discovered new exit (range 13) 16259 | -6/Factory | Build established: Commander-Tank 16414 | -6/Factory | P-60 Hacker assimilated allied Trooper 4i 16625 | -6/Factory | Lost 3 allies 17084 | -6/Factory | Discovered new exit (range 10) 17343 | -6/Factory | Discovered new exit (range 15) 17519 | -6/Factory | Garrison activated, responded to threat 17561 | -6/Factory | Lost 3 allies 17615 | -6/Factory | Garrison activated, responded to threat 17661 | -6/Factory | Identified exit to Garrison 17669 | -6/Factory | Entered Garrison 17669 | -6/Garrison | Accompanied by 9 allies 17754 | -6/Garrison | Expanded RIF knowledge: Code Merge 17801 | -6/Garrison | Triggered checkpoint 17836 | -6/Garrison | Lost 3 allies 17930 | -6/Garrison | Garrison Relay disabled 17975 | -6/Garrison | Triggered checkpoint 17975 | -6/Garrison | Triggered checkpoint 17977 | -6/Garrison | Triggered checkpoint 18030 | -6/Garrison | Lost 4 allies 18176 | -6/Garrison | Build established: Botlord-Tank 18209 | -6/Garrison | Triggered checkpoint 18283 | -6/Garrison | Triggered checkpoint 18330 | -6/Garrison | Lost 3 allies 18346 | -6/Garrison | Garrison Relay disabled 18377 | -6/Garrison | Discovered new exit (range 36) 18377 | -6/Garrison | Discovered new exit (range 70) 18377 | -6/Garrison | Discovered new exit (range 75) 18445 | -6/Garrison | Garrison Relay disabled 18583 | -6/Garrison | Triggered checkpoint 18641 | -6/Garrison | Expanded RIF knowledge: Zone Cloak 18672 | -6/Garrison | Garrison Relay disabled 18804 | -6/Garrison | Entered Factory 18804 | -5/Factory | Evolved 2 slots: Weapon x2 18850 | -5/Factory | Identified 1B-0RG's Assimilator 18957 | -5/Factory | Assimilating Serf 6a into Collective. 18996 | -5/Factory | Fabricated Centrium Heavy Armor Plating? 19047 | -5/Factory | Assimilating Slayer 6b into Collective. 19074 | -5/Factory | Assimilating Slayer 6a into Collective. 19080 | -5/Factory | Assimilating Serf 6b into Collective. 19146 | -5/Factory | Build established: Botlord-Mutant 19330 | -5/Factory | Assimilating Slayer 6c into Collective. 19521 | -5/Factory | Discovered new exit (range 5) 19528 | -5/Factory | Identified exit to Factory 19753 | -5/Factory | Assimilating Sentinel 6a into Collective. 19856 | -5/Factory | Assimilating Sage 6a into Collective. 19892 | -5/Factory | Discovered new exit (range 15) 19918 | -5/Factory | Identified exit to Extension 19921 | -5/Factory | Entered Extension 19921 | -5/Extension | Accompanied by 4 allies 20036 | -5/Extension | Rescued a captive Derelict 20042 | -5/Extension | Rescued a captive Derelict 20159 | -5/Extension | Lost 3 allies 20325 | -5/Extension | Rescued a captive Derelict 20336 | -5/Extension | Rescued A7 20408 | -5/Extension | Build established: Bothacker-Mutant 20671 | -5/Extension | Spotted B-75 Beast 20686 | -5/Extension | Allies destroyed B-75 Beast 20701 | -5/Extension | Spotted B-75 Beast 20725 | -5/Extension | Allies destroyed B-75 Beast 20747 | -5/Extension | Lost 4 allies 20768 | -5/Extension | Rescued a captive Derelict 20834 | -5/Extension | Rescued a captive Derelict 20838 | -5/Extension | Rescued a captive Derelict 20844 | -5/Extension | Watched by a mysterious "MATRIX" hacker. 20953 | -5/Extension | Assimilating IU-3BS(l) into Collective. 21088 | -5/Extension | Rescued a captive Derelict 21112 | -5/Extension | Assimilating U4-QGW(l) into Collective. 21264 | -5/Extension | Discovered exit to Factory (range 10) 21266 | -5/Extension | Discovered new exit (range 6) 21309 | -5/Extension | Entered Cetus 21309 | -5/Cetus | Accompanied by 16 allies (A7) 21314 | -5/Cetus | Acquired a Cetus Manufacturing Module code from A7 21344 | -5/Cetus | Spotted Cetus Guard 21344 | -5/Cetus | Spotted Cetus Guard 21347 | -5/Cetus | Spotted Cetus Guard 21348 | -5/Cetus | Spotted Cetus Guard 21359 | -5/Cetus | Build established: Commander-Mutant 21362 | -5/Cetus | Allies destroyed Cetus Guard 21369 | -5/Cetus | Allies destroyed Cetus Guard 21372 | -5/Cetus | Allies destroyed Cetus Guard 21372 | -5/Cetus | Assimilating Cetus Guard into Collective. 21399 | -5/Cetus | Lost 3 allies 21423 | -5/Cetus | Assimilating UT-FIE(h) into Collective. 21458 | -5/Cetus | Started Cetus Manufacturing Module 21483 | -5/Cetus | Manufactured an Enhanced Grunt 21488 | -5/Cetus | Escorted A7 to Cetus Mainframe 21508 | -5/Cetus | Manufactured an Enhanced Grunt 21509 | -5/Cetus | Discovered new exit (range 18) 21533 | -5/Cetus | Manufactured an Enhanced Grunt 21558 | -5/Cetus | Manufactured an Enhanced Grunt 21569 | -5/Cetus | Spotted Cetus Guard 21569 | -5/Cetus | Spotted Cetus Guard 21570 | -5/Cetus | Allies destroyed Cetus Guard 21575 | -5/Cetus | Spotted Cetus Guard 21581 | -5/Cetus | Allies destroyed Cetus Guard 21583 | -5/Cetus | Manufactured an Enhanced Grunt 21585 | -5/Cetus | Allies destroyed Cetus Guard 21587 | -5/Cetus | Discovered exit to Factory (range 26) 21591 | -5/Cetus | Spotted Cetus Guard 21593 | -5/Cetus | Allies destroyed Cetus Guard 21627 | -5/Cetus | Met Revision 17 21746 | -5/Cetus | Entered Archives 21746 | -5/Archives | Accompanied by 16 allies (A7) 21751 | -5/Archives | Received a hacking code to weaken MAIN.C 21785 | -5/Archives | Discovered new exit (range 26) 21859 | -5/Archives | Discovered exit to Factory (range 15) 21952 | -5/Archives | Assimilating Enhanced Grunt into Collective. 22007 | -5/Archives | Discovered new exit (range 24) 22069 | -5/Archives | Entered Hub_04(d) 22069 | -5/Hub_04(d) | Accompanied by 14 allies 22204 | -5/Hub_04(d) | Lost 3 allies 22238 | -5/Hub_04(d) | Spotted B-75 Beast 22240 | -5/Hub_04(d) | Assimilating Enhanced Grunt into Collective. 22256 | -5/Hub_04(d) | Allies destroyed B-75 Beast 22311 | -5/Hub_04(d) | Lost 3 allies 22492 | -5/Hub_04(d) | Assimilating Enhanced Grunt into Collective. 22560 | -5/Hub_04(d) | Build established: Scavenger-Mutant 22574 | -5/Hub_04(d) | Assimilating Enhanced Grunt into Collective. 22717 | -5/Hub_04(d) | Discovered exit to Factory (range 5) 22776 | -5/Hub_04(d) | Network Hub disabled 22780 | -5/Hub_04(d) | Spotted Lightning 22781 | -5/Hub_04(d) | Spotted Lightning 22784 | -5/Hub_04(d) | Spotted Lightning 22786 | -5/Hub_04(d) | Spotted Lightning 22792 | -5/Hub_04(d) | Garrison activated, responded to threat 22803 | -5/Hub_04(d) | Spotted Lightning 22805 | -5/Hub_04(d) | Assimilating Sage 6b into Collective. 22805 | -5/Hub_04(d) | Spotted Lightning 22817 | -5/Hub_04(d) | Spotted Lightning 22822 | -5/Hub_04(d) | System corruption reached 10% 22823 | -5/Hub_04(d) | Spotted Lightning 22824 | -5/Hub_04(d) | Spotted Lightning 22837 | -5/Hub_04(d) | Core integrity fell below 50% 22847 | -5/Hub_04(d) | Lost 8 allies 22869 | -5/Hub_04(d) | Identified exit to Garrison 22869 | -5/Hub_04(d) | Entered Garrison 22895 | -5/Garrison | Lost 8 parts (1p2n3u2w) 23059 | -5/Garrison | Garrison Relay disabled 23220 | -5/Garrison | Triggered checkpoint 23221 | -5/Garrison | Triggered checkpoint 23313 | -5/Garrison | Triggered checkpoint 23326 | -5/Garrison | Garrison Relay disabled 23392 | -5/Garrison | Discovered exit to Factory (range 12) 23392 | -5/Garrison | Discovered exit to Factory (range 40) 23392 | -5/Garrison | Discovered exit to Factory (range 69) 23423 | -5/Garrison | Triggered checkpoint 23463 | -5/Garrison | Lost 4 allies 23508 | -5/Garrison | Garrison Relay disabled 23527 | -5/Garrison | Triggered checkpoint 23577 | -5/Garrison | Spotted Executioner 23610 | -5/Garrison | Allies destroyed Executioner 23622 | -5/Garrison | Found Prototype Processor 23628 | -5/Garrison | Found Prototype Device 23628 | -5/Garrison | Identified Adv. Kinecellerator 23638 | -5/Garrison | Found Prototype Processor 23747 | -5/Garrison | Triggered checkpoint 23798 | -5/Garrison | Build established: Botlord-Tank 23895 | -5/Garrison | Triggered checkpoint 23931 | -5/Garrison | Garrison Relay disabled 23939 | -5/Garrison | Lost 5 allies 23961 | -5/Garrison | Expanded RIF knowledge: Threat Obfuscation 24170 | -5/Garrison | Entered Factory 24170 | -4/Factory | Accompanied by 1 ally 24170 | -4/Factory | Evolved 2 slots: Propulsion x1, Utility x1 24281 | -4/Factory | Build established: Botlord-Executioner 24321 | -4/Factory | Identified Exp. Core Analyzer (x2) 24658 | -4/Factory | Discovered new exit (range 5) 24842 | -4/Factory | Discovered new exit (range 9) 24925 | -4/Factory | P-70 Sage assimilated allied Sentinel 7a 24971 | -4/Factory | Discovered new exit (range 8) 25427 | -4/Factory | Identified exit to Garrison 25427 | -4/Factory | Entered Garrison 25427 | -4/Garrison | Accompanied by 2 allies 25439 | -4/Garrison | Triggered checkpoint 25490 | -4/Garrison | Expanded RIF knowledge: Program Shield 25501 | -4/Garrison | Garrison Relay disabled 25621 | -4/Garrison | Triggered checkpoint 25657 | -4/Garrison | Lost 5 allies 25661 | -4/Garrison | Spotted B-86 Titan 25712 | -4/Garrison | Destroyed B-86 Titan 25779 | -4/Garrison | Triggered checkpoint 25868 | -4/Garrison | Discovered new exit (range 8) 25878 | -4/Garrison | Spotted Executioner 25878 | -4/Garrison | Spotted Executioner 25884 | -4/Garrison | Destroyed Executioner 25892 | -4/Garrison | Destroyed Executioner 25915 | -4/Garrison | Found Prototype Processor 25937 | -4/Garrison | Rewired Striker 25981 | -4/Garrison | Triggered checkpoint 26012 | -4/Garrison | Garrison Relay disabled 26020 | -4/Garrison | Spotted B-86 Titan 26099 | -4/Garrison | Triggered checkpoint 26103 | -4/Garrison | Triggered checkpoint 26147 | -4/Garrison | Lost 4 allies 26278 | -4/Garrison | Spotted B-86 Titan 26316 | -4/Garrison | Destroyed B-86 Titan 26342 | -4/Garrison | Lost 3 parts (1p1n1u) 26396 | -4/Garrison | Discovered new exit (range 12) 26413 | -4/Garrison | Triggered checkpoint 26444 | -4/Garrison | Garrison Relay disabled 26505 | -4/Garrison | Garrison Relay disabled 26703 | -4/Garrison | Triggered checkpoint 26727 | -4/Garrison | Garrison Relay disabled 26809 | -4/Garrison | Learned Factory security intel 26812 | -4/Garrison | Discovered new exit (range 20) 26812 | -4/Garrison | Discovered new exit (range 61) 26812 | -4/Garrison | Discovered new exit (range 62) 26831 | -4/Garrison | Garrison Relay disabled 26895 | -4/Garrison | Phase Generator disabled 26956 | -4/Garrison | Entered Factory 26956 | -4/Factory | Accompanied by 5 allies 27209 | -4/Factory | Identified exit to Garrison 27210 | -4/Factory | Entered Garrison 27210 | -4/Garrison | Accompanied by 5 allies 27248 | -4/Garrison | Triggered checkpoint 27290 | -4/Garrison | Lost 5 allies 27320 | -4/Garrison | Expanded RIF knowledge: Autoassimilate 27368 | -4/Garrison | Garrison Relay disabled 27432 | -4/Garrison | Triggered checkpoint 27444 | -4/Garrison | Triggered checkpoint 27490 | -4/Garrison | Triggered checkpoint 27523 | -4/Garrison | Lost 8 allies 27552 | -4/Garrison | Lost 3 parts (3w) 27665 | -4/Garrison | Discovered new exit (range 15) 27786 | -4/Garrison | Triggered checkpoint 27841 | -4/Garrison | Garrison Relay disabled 27883 | -4/Garrison | Garrison Relay disabled 28020 | -4/Garrison | Triggered checkpoint 28061 | -4/Garrison | Garrison Relay disabled 28073 | -4/Garrison | Spotted Striker 28073 | -4/Garrison | Spotted Striker 28101 | -4/Garrison | Destroyed Striker 28116 | -4/Garrison | Destroyed Striker 28198 | -4/Garrison | Discovered new exit (range 11) 28331 | -4/Garrison | Discovered new exit (range 48) 28331 | -4/Garrison | Discovered new exit (range 58) 28331 | -4/Garrison | Discovered new exit (range 24) 28410 | -4/Garrison | Found Unknown Launcher 28410 | -4/Garrison | Identified Gamma Bomb Array 28476 | -4/Garrison | Triggered checkpoint 28495 | -4/Garrison | Garrison Relay disabled 28676 | -4/Garrison | Spotted B-86 Titan 28696 | -4/Garrison | Entered Research 28696 | -3/Research | Evolved 2 slots: Propulsion x1, Utility x1 28791 | -3/Research | Discovered new exit (range 10) 28902 | -3/Research | Revision forces began assault on 0b10 28904 | -3/Research | Met up with Revision 17++ 29053 | -3/Research | Fabricated P-70 Sage? 29147 | -3/Research | Assembled infested ambush trap array 29230 | -3/Research | Discovered new exit (range 41) 29391 | -3/Research | Lost 3 allies 29402 | -3/Research | Research terminal network offline 29539 | -3/Research | Identified exit to Testing 29542 | -3/Research | Entered Testing 29542 | -3/Testing | Accompanied by 1 ally 29709 | -3/Testing | Found Prototype Energy Cannon 29709 | -3/Testing | Identified Hpw. Disruptor Cannon 29884 | -3/Testing | Identified Exp. Targeting Computer 29921 | -3/Testing | Scanned by Researcher 29976 | -3/Testing | Lost 3 allies 30055 | -3/Testing | Found Prototype Launcher 30133 | -3/Testing | Identified Tactical Quantum Warhead 30365 | -3/Testing | Spotted Striker 30365 | -3/Testing | Spotted Striker 30441 | -3/Testing | Fabricated P-70 Sage? 30455 | -3/Testing | Found Prototype Hackware 30508 | -3/Testing | Identified System Mapper 30599 | -3/Testing | Lost 3 allies 30626 | -3/Testing | Discovered new exit (range 17) 30683 | -3/Testing | Found SHELL Armor 30688 | -3/Testing | Found Med. Regenerative Plating 30691 | -3/Testing | Found Hvy. Regenerative Plating 30986 | -3/Testing | Found Potential Cannon 30989 | -3/Testing | Found Prototype Energy Cannon 30993 | -3/Testing | Identified Imp. Potential Cannon 31050 | -3/Testing | Build established: Scavenger-Executioner 31094 | -3/Testing | Entered Research 31094 | -2/Research | Accompanied by 2 allies 31094 | -2/Research | Evolved 2 slots: Power x1, Utility x1 31132 | -2/Research | Identified exit to Quarantine 31210 | -2/Research | Garrison activated, responded to threat 31484 | -2/Research | Spotted B-90 Cyclops 31538 | -2/Research | Destroyed B-90 Cyclops 31935 | -2/Research | Entered Quarantine 31974 | -2/Quarantine | Found Alien Artifact 31974 | -2/Quarantine | Identified Phase Armor 32005 | -2/Quarantine | Found Alien Artifact 32059 | -2/Quarantine | Build established: Executioner 32087 | -2/Quarantine | Central database locked down 32087 | -2/Quarantine | Identified Core Reset Matrix 32293 | -2/Quarantine | Found Alien Slashing Weapon 32295 | -2/Quarantine | Identified Sigix Broadsword 32576 | -2/Quarantine | Build established: Tank 32626 | -2/Quarantine | System corruption reached 10% 32986 | -2/Quarantine | Targeted by mysterious "MATRIX" hacker. 33016 | -2/Quarantine | Spotted Alpha 7 33064 | -2/Quarantine | Destroyed Alpha 7 33197 | -2/Quarantine | Discovered new exit (range 9) 33279 | -2/Quarantine | Found Alien Artifact 33279 | -2/Quarantine | Identified Phase Redirector 33472 | -2/Quarantine | Found Alien Artifact 33674 | -2/Quarantine | Identified Subatomic Replicator 33695 | -2/Quarantine | Found Core Stripper 33750 | -2/Quarantine | Found Dimensional Node Initializer 33750 | -2/Quarantine | Initialized slip node 33760 | -2/Quarantine | Found Transdimensional Reconstructor 34317 | -2/Quarantine | Spotted Fortress 34339 | -2/Quarantine | Destroyed Fortress 34350 | -2/Quarantine | Found Prototype Reactor 34350 | -2/Quarantine | Identified Vortex Chain Reactor 34354 | -2/Quarantine | Found Vortex Chain Reactor 34357 | -2/Quarantine | Found Prototype Device 34357 | -2/Quarantine | Identified Thermal Barrier 34373 | -2/Quarantine | Found Prototype Device 34373 | -2/Quarantine | Identified Exp. Force Field 34377 | -2/Quarantine | Found Prototype Device 34377 | -2/Quarantine | Identified Exp. EM Shield 34418 | -2/Quarantine | Warped through subspace to slip node 34422 | -2/Quarantine | Found Dimensional Node Initializer 34429 | -2/Quarantine | Found Transdimensional Reconstructor 34432 | -2/Quarantine | Found Transdimensional Reconstructor 34693 | -2/Quarantine | Discovered new exit (range 6) 34693 | -2/Quarantine | Discovered new exit (range 7) 34701 | -2/Quarantine | Entered Section 7 34724 | -2/Section 7 | Initialized slip node 34739 | -2/Section 7 | Found Alien Artifact 35230 | -2/Section 7 | Identified Integrated Mediator 35230 | -2/Section 7 | Installed Integrated Mediator, increased core attachment efficiency 35504 | -2/Section 7 | Spotted S7 Guard 35607 | -2/Section 7 | Found Core Regenerator 35662 | -2/Section 7 | Found Integrity Redistributor 35722 | -2/Section 7 | Spotted B-90 Cyclops 35912 | -2/Section 7 | Spotted S7 Guard 35953 | -2/Section 7 | Found Alien Artifact 36078 | -2/Section 7 | Discovered new exit (range 3) 36258 | -2/Section 7 | Destroyed B-90 Cyclops 36354 | -2/Section 7 | Build established: Executioner 36517 | -2/Section 7 | Used Integrity Redistributor, redistributed integrity from core (-366) 36518 | -2/Section 7 | Core integrity fell below 50% 36531 | -2/Section 7 | Found Alien Artifact 36577 | -2/Section 7 | Spotted S7 Guard 36587 | -2/Section 7 | Used Core Regenerator, restored core integrity (+362) 36616 | -2/Section 7 | Identified Microwarp Drive 36649 | -2/Section 7 | Found Alien Artifact 36680 | -2/Section 7 | Destroyed S7 Guard 36733 | -2/Section 7 | Destroyed S7 Guard 36979 | -2/Section 7 | Identified Navigation Efficiency Matrix 36979 | -2/Section 7 | Identified Core Membrane 36980 | -2/Section 7 | Installed Core Membrane, gained immunity to corruption 37000 | -2/Section 7 | Found Alien Artifact 37005 | -2/Section 7 | Identified LRC Insulator 37006 | -2/Section 7 | Installed LRC Insulator, 1 resistance modified: EM +25% 37015 | -2/Section 7 | Found LRC Insulator 37016 | -2/Section 7 | Installed LRC Insulator, 1 resistance modified: EM +25% 37091 | -2/Section 7 | Found Integrated Reactor 37093 | -2/Section 7 | Used Subatomic Replicator to create Alien Artifact 37096 | -2/Section 7 | Identified Supercharged Integrated Reactor 37097 | -2/Section 7 | Installed Supercharged Integrated Reactor, increased core energy generation (+15) 37100 | -2/Section 7 | Found Integrated Reactor 37100 | -2/Section 7 | Installed Integrated Reactor, increased core energy generation (+10) 37103 | -2/Section 7 | Found Integrated Reactor 37103 | -2/Section 7 | Installed Integrated Reactor, increased core energy generation (+10) 37194 | -2/Section 7 | Found Integrity Redistributor 37201 | -2/Section 7 | First assault squad dispatched 37626 | -2/Section 7 | Destroyed 7 combat bots 37658 | -2/Section 7 | Identified exit to Garrison 37658 | -2/Section 7 | Entered Garrison 37658 | -2/Garrison | Accompanied by 1 ally 37712 | -2/Garrison | Triggered checkpoint 37743 | -2/Garrison | Garrison Relay disabled 37869 | -2/Garrison | Build established: Scavenger-Executioner 37880 | -2/Garrison | Spotted B-90 Cyclops 37884 | -2/Garrison | Triggered checkpoint 37906 | -2/Garrison | Triggered checkpoint 37919 | -2/Garrison | Triggered checkpoint 37924 | -2/Garrison | Destroyed B-90 Cyclops 37945 | -2/Garrison | Destroyed 16 combat bots 38061 | -2/Garrison | Discovered new exit (range 15) 38136 | -2/Garrison | Triggered checkpoint 38200 | -2/Garrison | Garrison Relay disabled 38230 | -2/Garrison | Garrison Relay disabled 38322 | -2/Garrison | Triggered checkpoint 38450 | -2/Garrison | Discovered new exit (range 13) 38450 | -2/Garrison | Spotted Striker 38467 | -2/Garrison | Destroyed Striker 38492 | -2/Garrison | Rewired Executioner 38520 | -2/Garrison | Triggered checkpoint 38533 | -2/Garrison | Garrison Relay disabled 38580 | -2/Garrison | Spotted B-75 Beast 38621 | -2/Garrison | Destroyed B-75 Beast 38664 | -2/Garrison | Rewired B-75 Beast 38672 | -2/Garrison | Rewired B-86 Titan 38808 | -2/Garrison | Expanded RIF knowledge: Signal Jamming 38880 | -2/Garrison | Triggered checkpoint 38918 | -2/Garrison | Garrison Relay disabled 39014 | -2/Garrison | Discovered new exit (range 14) 39237 | -2/Garrison | Build established: Botlord-Executioner 39292 | -2/Garrison | Entered Access 39292 | -1/Access | Accompanied by 2 allies 39292 | -1/Access | Evolved 2 slots: Power x1, Utility x1 40042 | -1/Access | First assault squad dispatched 40091 | -1/Access | Spotted B-99 Colossus 40830 | -1/Access | Found Hellfire Missile Launcher 40843 | -1/Access | Found Thermal Barrier 40936 | -1/Access | Spotted B-99 Colossus 40936 | -1/Access | Spotted B-99 Colossus 41142 | -1/Access | Assimilated Heavy ARC 10a with formatsys_deep 41203 | -1/Access | Build established: Scavenger-Executioner 41331 | -1/Access | Lost 5 allies 41333 | -1/Access | Discovered new exit (range 16) 41352 | -1/Access | Entered Command 41641 | -1/Command | Spotted B-99 Colossus 41679 | -1/Command | Destroyed B-99 Colossus 42010 | -1/Command | Spotted M Guard 42014 | -1/Command | Spotted M Guard 42014 | -1/Command | Spotted Combat Programmer 42021 | -1/Command | Spotted Combat Programmer 42066 | -1/Command | Destroyed Combat Programmer 42092 | -1/Command | Destroyed Combat Programmer 42102 | -1/Command | First assault squad dispatched 42106 | -1/Command | Destroyed M Guard 42116 | -1/Command | Destroyed M Guard 42116 | -1/Command | All MAIN.C guards destroyed 42289 | -1/Command | Spotted Executioner 42289 | -1/Command | Spotted Striker 42293 | -1/Command | Build established: Executioner 42474 | -1/Command | Destroyed 10 combat bots 42662 | -1/Command | Met MAIN.C 42671 | -1/Command | 0b10 Conduit disabled 42724 | -1/Command | Destroyed MAIN.C Shell 42727 | -1/Command | MAIN.C activated Command garrisons 42784 | -1/Command | Destroyed MAIN.C 42807 | -1/Command | Discovered new exit (range 25) 42807 | -1/Command | Discovered new exit (range 101) 42807 | -1/Command | Extracted map data and part IDs from MAIN.C's data core 42809 | -1/Command | Lost 7 parts (2p1n2u2w) 43072 | -1/Command | Destroyed 7 combat bots 43754 | -1/Command | Build established: Tank 43843 | -1/Command | Found Vortex Chain Reactor 43846 | -1/Command | Found Zero-point Reactor 43858 | -1/Command | Found SHELL Armor 43863 | -1/Command | Found Hvy. Regenerative Plating 44042 | -1/Command | Found Quantum Capacitor 44086 | -1/Command | Build established: Executioner 44566 | -1/Command | Found Exp. Core Analyzer 44573 | -1/Command | Found Exp. Targeting Computer 44600 | -1/Command | Found Exp. Core Analyzer 45436 | -1/Command | Build established: Scavenger-Executioner 45533 | -1/Command | Warped through subspace to slip node 45533 | -1/Command | Discovered new exit (range 4) 45539 | -1/Command | Entered Access_0 45540 | -1/Access_0 | Met Architect 45563 | -1/Access_0 | Destroyed A8 45593 | -1/Access_0 | Architect warped through subspace 45627 | -1/Access_0 | Architect warped through subspace 45655 | -1/Access_0 | Architect warped through subspace 45691 | -1/Access_0 | Architect warped through subspace 45718 | -1/Access_0 | Architect warped through subspace 45744 | -1/Access_0 | Architect warped through subspace 45758 | -1/Access_0 | Found Corrupted Exp. Weapon Cycler 45769 | -1/Access_0 | Architect warped through subspace 45772 | -1/Access_0 | Used Integrity Redistributor, redistributed integrity from core (-293) 45773 | -1/Access_0 | Core integrity fell below 50% 45793 | -1/Access_0 | Architect warped through subspace 45829 | -1/Access_0 | Architect warped through subspace 45847 | -1/Access_0 | A6 warped into view 45853 | -1/Access_0 | Destroyed A6 45855 | -1/Access_0 | Architect warped through subspace 45884 | -1/Access_0 | Architect warped through subspace 45913 | -1/Access_0 | Architect warped through subspace 45936 | -1/Access_0 | Architect warped through subspace 45954 | -1/Access_0 | Subspace Access Node disabled 45959 | -1/Access_0 | Architect warped through subspace 45988 | -1/Access_0 | Subspace Access Node disabled 46008 | -1/Access_0 | Architect warped through subspace 46040 | -1/Access_0 | Architect warped through subspace 46066 | -1/Access_0 | Architect warped through subspace 46104 | -1/Access_0 | Architect warped through subspace 46128 | -1/Access_0 | Architect warped through subspace 46158 | -1/Access_0 | Architect warped through subspace 46192 | -1/Access_0 | Architect warped through subspace 46207 | -1/Access_0 | Architect warped through subspace 46222 | -1/Access_0 | Architect warped through subspace 46233 | -1/Access_0 | Architect warped through subspace 46261 | -1/Access_0 | Architect warped through subspace 46267 | -1/Access_0 | A5 warped into view 46303 | -1/Access_0 | Core integrity fell below 20% 46308 | -1/Access_0 | Destroyed A5 46311 | -1/Access_0 | Subspace Access Node disabled 46333 | -1/Access_0 | Architect warped through subspace 46337 | -1/Access_0 | Architect warped through subspace 46339 | -1/Access_0 | Architect warped through subspace 46342 | -1/Access_0 | Subspace Access Node disabled 46367 | -1/Access_0 | Destroyed Architect 46368 | -1/Access_0 | Architect triggered a singularity event 46369 | -1/Access_0 | Warped through subspace to slip node 46369 | -1/Access_0 | Discovered new exit (range 8) 46370 | -1/Access_0 | Released all parts (16) 46373 | *** | Escaped singularity! Last Messages --------------- 46370_ Released Exp. Weapon Cycler. 46370_ Released Enh. Nova Cannon. 46370_ Released Graphene Brace. 46370_ Released Adv. Cooling System. 46370_ Released Imp. Potential Cannon. 46370_ Released Huge Storage Unit. 46370_ Released Exp. Optical Array. 46370_ Released Exp. Biometal Heavy Treads. 46370_ Released Exp. Targeting Computer. 46370_ Released Exp. Core Analyzer. 46370_ Released Imp. Quantum Reactor. 46370_ Released Com. HERF Cannon+. 46370_ Released Com. Particle Reactor. 46370_ Released Zero-point Reactor. 46370_ Released Exp. Energy Well. 46370_ Released Exp. Core Analyzer. 46371_ A0_COM: 8. 46371_ Extracted 2 energy. 46372_ A0_COM: 7. 46373_ A0_COM: 6. Map ----- +----------------------------------------------------+ | | | | | | | | | | | | | | | | | | | | | | | | | | | | | | | | | ?????????????????????????????????????????????????? | | ?????????????????????????????????????????????????? | | ?????????????????????????????????????????????????? | | ?????????????????????????????????????????????????? | | ?????????????????????????????????????????????????? | | ?????????????????????????????????????????????????? | | ????????????????????????###??????????????????????? | | ???????????????????????## ##?????????????????????? | | ???????????????????????# #?????????????????????? | | ???????????????????????# @ #?????????????????????? | | ??????????????????????## #?????????????????????? | | ??????????????????????# #?????????????????????? | | ??????????????????????#!**##?????????????????????? | | ??????????????????????##!*]#?????????????????????? | | ??????????????????????#!!!=#?????????????????????? | | ??????????????????????#!]!##?????????????????????? | | ??????????????????????#!!]!#?????????????????????? | | ??????????????????????#!!]##?????????????????????? | | ??????????????????????##]!#??????????????????????? | | ???????????????????????####??????????????????????? | | ?????????????????????????????????????????????????? | | ?????????????????????????????????????????????????? | | ?????????????????????????????????????????????????? | | ?????????????????????????????????????????????????? | | ?????????????????????????????????????????????????? | | ?????????????????????????????????????????????????? | | ?????????????????????????????????????????????????? | | ?????????????????????????????????????????????????? | | ?????????????????????????????????????????????????? | | ?????????????????????????????????????????????????? | | ?????????????????????????????????????????????????? | | ?????????????????????????????????????????????????? | | ?????????????????????????????????????????????????? | | ?????????????????????????????????????????????????? | +----------------------------------------------------+ Best States ------------- Heat Dissipation 121 Coolant Potential 50 Energy Generation 118 Energy Capacity 1125 Matter Stores 300 Matter Capacity 300 Sight Range 23 Robot Scan Range 16 Terrain Scan Range 24 Terrain Scan Density 10 Jamming Range 16 Power Amplification 40 Armor Coverage 1200 Resistance: TH 50 Resistance: EM 100 Core Shielding 40 Utility Shielding 66 Point Defense Rating 240 Weapon Cycling 30 Phase Shifting 15 Evasion (%) 70 Targeting Accuracy 12 Melee Accuracy 5 Core Analysis 12 Recoil Reduction 6 Offensive Hacking 20 Defensive Hacking 14 Relay Coupler Types 5 Relay Coupler Value 265 Authchip Count 2 Item Schematics ----------------- Huge Storage Unit | -10/Materials | Hacked Multitool | -8/Materials | Scanalyzed Imp. Utility Shielding | -7/Factory | Scanalyzed Exp. Core Analyzer | -4/Factory | Scanalyzed Adv. Force Field | -4/Factory | Hacked Shock Maul | -3/Testing | Archive Exp. Coolant Injector | -3/Testing | Archive Smartbomb Launcher | -3/Testing | Archive Imp. Matter Compressor | -3/Testing | Archive Imp. KE Penetrator | -3/Testing | Archive Exp. Target Analyzer | -3/Testing | Archive Tiamat Missile Launcher | -3/Testing | Archive Imp. Energy Well | -3/Testing | Archive Exp. Optical Array | -3/Testing | Archive Hvy. Regenerative Plating | -3/Testing | Hacked Enh. Flexi-carbon Leg | -3/Testing | Archive Adv. Plasma Rifle | -3/Testing | Archive Cld. Proton Cannon | -3/Testing | Archive Lrn. Phase Cannon | -3/Testing | Archive Prc. Matter Filter | -3/Testing | Archive Plasma Lance | -2/Research | Archive Proton Burst Cannon | -2/Research | Archive Spectral Analyzer | -2/Research | Archive Centrium Medium Armor Plating | -2/Research | Archive Graphene Brace | -2/Quarantine | Scanalyzed Exp. Signal Interpreter | -2/Quarantine | Archive Cld. Antimatter Reactor | -2/Quarantine | Archive Exp. Melee Analysis Suite | -2/Quarantine | Archive Exp. Energy Well | -2/Quarantine | Archive Adv. Quantum Shading Machine | -2/Quarantine | Archive Cld. Linear Gravjet | -2/Quarantine | Archive Thermal Barrier | -2/Quarantine | Archive Hvy. Proton Cannon | -2/Quarantine | Archive Electron Diverter | -2/Section 7 | Archive Robot Schematics ------------------ M-28 Smith | -8/Materials | Hacked P-70 Sage | -4/Factory | Hacked R-06 Scavenger | -3/Testing | Archive E-15 Imp | -3/Testing | Archive A-27 Freighter | -3/Testing | Archive R-10 Processor | -3/Testing | Archive P-80 Master | -2/Research | Hacked M-30 Cleanser | -2/Quarantine | Archive A-15 Conveyor | -2/Quarantine | Archive B-74 Champion | -2/Section 7 | Archive H-77 Assassin | -2/Section 7 | Archive K-01 Serf | -2/Section 7 | Archive Fabricated ------------ Imp. Plasma Cutter | x2 | -6/Factory | Preloaded Centrium Heavy Armor Plating | x1 | -5/Factory | Preloaded P-70 Sage | x2 | -3/Research | Authchip P-70 Sage | x2 | -3/Testing | Authchip Repaired ---------- Nothing Studied --------- Wheel | -8/Materials | Hacked Com. Wheel | -8/Materials | Hacked Arm. Wheel | -8/Materials | Hacked Arm. Huge Wheel | -7/Factory | Hacked Remote Datajack | -7/Factory | Hacked Imp. Remote Datajack | -4/Factory | Hacked Imp. Heavy Treads | -4/Factory | Hacked Enh. Hardcell Cannon | -2/Quarantine | Hacked Adv. Remote Datajack | -2/Section 7 | Hacked Com. HERF Cannon | -2/Section 7 | Hacked Alien Tech Used ----------------- Phase Armor Sigix Broadsword Phase Redirector Dimensional Node Initializer Core Stripper Transdimensional Reconstructor Integrated Mediator Integrity Redistributor Core Regenerator Microwarp Drive Core Membrane LRC Insulator Subatomic Replicator Supercharged Integrated Reactor Integrated Reactor Achievements -------------- None Challenges ------------ None Game ------ Seed TransportTimingScythe Manual? 0 Play Time 10:06:43 Cumulative 1180.4 hours Start 2026.04.25 @ 22:57:15 End 2026.04.26 @ 22:29:56 Sessions 7 Manual Loads 0 Difficulty Rogue Special Mode None Game No. 212 Rogue 212 Adventurer 0 Explorer 0 Win Type 6 Total 72 Types 27/9/11/1/3/1/11/4/3/2 Lore% 95 Gallery% 92 Achievement% 87 Wizard Run 0 Options --------- Layout 0 ASCII 0 Keyboard 0 Movement Numpad Keybinds 0 Fullscreen 1 Font 18/SmallcapsGlow Map View 76x50 Zoom Use 0% Tactical HUD 1 Map Filters NONE Filters NONE Steam 1 RUN: 410c1057-3e1f-469b-88df-8bf160b6668e